Publisher Label,Publisher URI,"Supplier ID","Supplier","Invoice No.","Amount £","Purpose","Transaction Number","Payment Date","Organisational Unit","Cost Centre(T)","Internal Category Number"
"Wolverhampton City Council","http://opendatacommunities.org/id/metropolitan-district-council/wolverhampton","706697","Radis Community Care","1208201820180816","203.28","TPP - Home Care","190496224","17/08/2018","Older People Care Purchasing","OP Care Purchasing (Spot Placements)","R5420"
"Wolverhampton City Council","http://opendatacommunities.org/id/metropolitan-district-council/wolverhampton","706697","Radis Community Care","1208201820180816","203.28","TPP - Home Care","190496224","17/08/2018","Older People Care Purchasing","OP Care Purchasing (Spot Placements)","R5420"
"Wolverhampton City Council","http://opendatacommunities.org/id/metropolitan-district-council/wolverhampton","706697","Radis Community Care","1208201820180816","192.39","TPP - Home Care","190496224","17/08/2018","Older People Care Purchasing","OP Care Purchasing (Spot Placements)","R5420"
"Wolverhampton City Council","http://opendatacommunities.org/id/metropolitan-district-council/wolverhampton","706697","Radis Community Care","1208201820180816","203.28","TPP - Home Care","190496224","17/08/2018","Older People Care Purchasing","OP Care Purchasing (Spot Placements)","R5420"
"Wolverhampton City Council","http://opendatacommunities.org/id/metropolitan-district-council/wolverhampton","706697","Radis Community Care","1208201820180816","50.82","TPP - Home Care","190496224","17/08/2018","Older People Care Purchasing","OP Care Purchasing (Spot Placements)","R5420"
"Wolverhampton City Council","http://opendatacommunities.org/id/metropolitan-district-council/wolverhampton","706697","Radis Community Care","1208201820180816","50.82","TPP - Home Care","190496224","17/08/2018","Physical Disabilities Care Purchasing","PD Care Purchasing (Spot Placements)","R5420"
"Wolverhampton City Council","http://opendatacommunities.org/id/metropolitan-district-council/wolverhampton","706697","Radis Community Care","1208201820180816","50.82","TPP - Home Care","190496224","17/08/2018","Physical Disabilities Care Purchasing","PD Care Purchasing (Spot Placements)","R5420"
"Wolverhampton City Council","http://opendatacommunities.org/id/metropolitan-district-council/wolverhampton","706697","Radis Community Care","1208201820180816","29.04","TPP - Home Care","190496224","17/08/2018","Physical Disabilities Care Purchasing","PD Care Purchasing (Spot Placements)","R5420"
"Wolverhampton City Council","http://opendatacommunities.org/id/metropolitan-district-council/wolverhampton","706697","Radis Community Care","1208201820180816","94.38","TPP - Home Care","190496224","17/08/2018","Older People Care Purchasing","OP Care Purchasing (Spot Placements)","R5420"
"Wolverhampton City Council","http://opendatacommunities.org/id/metropolitan-district-council/wolverhampton","706697","Radis Community Care","1208201820180816","192.39","TPP - Home Care","190496224","17/08/2018","Physical Disabilities Care Purchasing","PD Care Purchasing (Spot Placements)","R5420"
"Wolverhampton City Council","http://opendatacommunities.org/id/metropolitan-district-council/wolverhampton","706697","Radis Community Care","1208201820180816","192.39","TPP - Home Care","190496224","17/08/2018","Physical Disabilities Care Purchasing","PD Care Purchasing (Spot Placements)","R5420"
"Wolverhampton City Council","http://opendatacommunities.org/id/metropolitan-district-council/wolverhampton","706697","Radis Community Care","1208201820180816","225.06","TPP - Home Care","190496224","17/08/2018","Older People Care Purchasing","OP Care Purchasing (Spot Placements)","R5420"
"Wolverhampton City Council","http://opendatacommunities.org/id/metropolitan-district-council/wolverhampton","706697","Radis Community Care","1208201820180816","36.30","TPP - Home Care","190496224","17/08/2018","Older People Care Purchasing","OP Care Purchasing (Spot Placements)","R5420"
"Wolverhampton City Council","http://opendatacommunities.org/id/metropolitan-district-council/wolverhampton","706697","Radis Community Care","1208201820180816","482.79","TPP - Home Care","190496224","17/08/2018","Physical Disabilities Care Purchasing","PD Care Purchasing (Spot Placements)","R5420"
"Wolverhampton City Council","http://opendatacommunities.org/id/metropolitan-district-council/wolverhampton","706697","Radis Community Care","1208201820180816","457.38","TPP - Home Care","190496224","17/08/2018","Physical Disabilities Care Purchasing","PD Care Purchasing (Spot Placements)","R5420"
"Wolverhampton City Council","http://opendatacommunities.org/id/metropolitan-district-council/wolverhampton","706697","Radis Community Care","1208201820180816","83.49","TPP - Home Care","190496224","17/08/2018","Learning Disabilities Care Purchasing","LD Care Purchasing (Spot Placements)","R5420"
"Wolverhampton City Council","http://opendatacommunities.org/id/metropolitan-district-council/wolverhampton","706697","Radis Community Care","1208201820180816","221.43","TPP - Home Care","190496224","17/08/2018","Older People Care Purchasing","OP Care Purchasing (Spot Placements)","R5420"
"Wolverhampton City Council","http://opendatacommunities.org/id/metropolitan-district-council/wolverhampton","706697","Radis Community Care","1208201820180816","58.08","TPP - Home Care","190496224","17/08/2018","Older People Care Purchasing","OP Care Purchasing (Spot Placements)","R5420"
"Wolverhampton City Council","http://opendatacommunities.org/id/metropolitan-district-council/wolverhampton","706697","Radis Community Care","1208201820180816","14.52","TPP - Home Care","190496224","17/08/2018","Older People Care Purchasing","OP Care Purchasing (Spot Placements)","R5420"
"Wolverhampton City Council","http://opendatacommunities.org/id/metropolitan-district-council/wolverhampton","706697","Radis Community Care","1208201820180816","94.38","TPP - Home Care","190496224","17/08/2018","Older People Care Purchasing","OP Care Purchasing (Spot Placements)","R5420"
"Wolverhampton City Council","http://opendatacommunities.org/id/metropolitan-district-council/wolverhampton","706697","Radis Community Care","1208201820180816","101.64","TPP - Home Care","190496224","17/08/2018","Older People Care Purchasing","OP Care Purchasing (Spot Placements)","R5420"
"Wolverhampton City Council","http://opendatacommunities.org/id/metropolitan-district-council/wolverhampton","706697","Radis Community Care","1208201820180816","47.19","TPP - Home Care","190496224","17/08/2018","Older People Care Purchasing","OP Care Purchasing (Spot Placements)","R5420"
"Wolverhampton City Council","http://opendatacommunities.org/id/metropolitan-district-council/wolverhampton","706697","Radis Community Care","1208201820180816","50.82","TPP - Home Care","190496224","17/08/2018","Older People Care Purchasing","OP Care Purchasing (Spot Placements)","R5420"
"Wolverhampton City Council","http://opendatacommunities.org/id/metropolitan-district-council/wolverhampton","706697","Radis Community Care","1208201820180816","101.64","TPP - Home Care","190496224","17/08/2018","Older People Care Purchasing","OP Care Purchasing (Spot Placements)","R5420"
"Wolverhampton City Council","http://opendatacommunities.org/id/metropolitan-district-council/wolverhampton","706697","Radis Community Care","1208201820180816","21.78","TPP - Home Care","190496224","17/08/2018","Physical Disabilities Care Purchasing","PD Care Purchasing (Spot Placements)","R5420"
"Wolverhampton City Council","http://opendatacommunities.org/id/metropolitan-district-council/wolverhampton","706697","Radis Community Care","1208201820180816","163.35","TPP - Home Care","190496224","17/08/2018","Physical Disabilities Care Purchasing","PD Care Purchasing (Spot Placements)","R5420"
"Wolverhampton City Council","http://opendatacommunities.org/id/metropolitan-district-council/wolverhampton","706697","Radis Community Care","1208201820180816","39.93","TPP - Home Care","190496224","17/08/2018","Older People Care Purchasing","OP Care Purchasing (Spot Placements)","R5420"
"Wolverhampton City Council","http://opendatacommunities.org/id/metropolitan-district-council/wolverhampton","706697","Radis Community Care","1208201820180816","72.60","TPP - Home Care","190496224","17/08/2018","Physical Disabilities Care Purchasing","PD Care Purchasing (Spot Placements)","R5420"
"Wolverhampton City Council","http://opendatacommunities.org/id/metropolitan-district-council/wolverhampton","706697","Radis Community Care","1208201820180816","68.97","TPP - Home Care","190496224","17/08/2018","Physical Disabilities Care Purchasing","PD Care Purchasing (Spot Placements)","R5420"
"Wolverhampton City Council","http://opendatacommunities.org/id/metropolitan-district-council/wolverhampton","706697","Radis Community Care","1208201820180816","32.67","TPP - Home Care","190496224","17/08/2018","Physical Disabilities Care Purchasing","PD Care Purchasing (Spot Placements)","R5420"
"Wolverhampton City Council","http://opendatacommunities.org/id/metropolitan-district-council/wolverhampton","706697","Radis Community Care","1208201820180816","72.60","TPP - Home Care","190496224","17/08/2018","Older People Care Purchasing","OP Care Purchasing (Spot Placements)","R5420"
"Wolverhampton City Council","http://opendatacommunities.org/id/metropolitan-district-council/wolverhampton","706697","Radis Community Care","1208201820180816","199.65","TPP - Home Care","190496224","17/08/2018","Older People Care Purchasing","OP Care Purchasing (Spot Placements)","R5420"
"Wolverhampton City Council","http://opendatacommunities.org/id/metropolitan-district-council/wolverhampton","706697","Radis Community Care","1208201820180816","199.65","TPP - Home Care","190496224","17/08/2018","Older People Care Purchasing","OP Care Purchasing (Spot Placements)","R5420"
"Wolverhampton City Council","http://opendatacommunities.org/id/metropolitan-district-council/wolverhampton","706697","Radis Community Care","1208201820180816","94.38","TPP - Home Care","190496224","17/08/2018","Physical Disabilities Care Purchasing","PD Care Purchasing (Spot Placements)","R5420"
"Wolverhampton City Council","http://opendatacommunities.org/id/metropolitan-district-council/wolverhampton","706697","Radis Community Care","1208201820180816","98.01","TPP - Home Care","190496224","17/08/2018","Older People Care Purchasing","OP Care Purchasing (Spot Placements)","R5420"
"Wolverhampton City Council","http://opendatacommunities.org/id/metropolitan-district-council/wolverhampton","706697","Radis Community Care","1208201820180816","68.97","TPP - Home Care","190496224","17/08/2018","Older People Care Purchasing","OP Care Purchasing (Spot Placements)","R5420"
"Wolverhampton City Council","http://opendatacommunities.org/id/metropolitan-district-council/wolverhampton","706697","Radis Community Care","1208201820180816","214.17","TPP - Home Care","190496224","17/08/2018","Older People Care Purchasing","OP Care Purchasing (Spot Placements)","R5420"
"Wolverhampton City Council","http://opendatacommunities.org/id/metropolitan-district-council/wolverhampton","706697","Radis Community Care","1208201820180816","101.64","TPP - Home Care","190496224","17/08/2018","Older People Care Purchasing","OP Care Purchasing (Spot Placements)","R5420"
"Wolverhampton City Council","http://opendatacommunities.org/id/metropolitan-district-council/wolverhampton","706697","Radis Community Care","1208201820180816","137.94","TPP - Home Care","190496224","17/08/2018","Older People Care Purchasing","OP Care Purchasing (Spot Placements)","R5420"
"Wolverhampton City Council","http://opendatacommunities.org/id/metropolitan-district-council/wolverhampton","706697","Radis Community Care","1208201820180816","101.64","TPP - Home Care","190496224","17/08/2018","Older People Care Purchasing","OP Care Purchasing (Spot Placements)","R5420"
"Wolverhampton City Council","http://opendatacommunities.org/id/metropolitan-district-council/wolverhampton","706697","Radis Community Care","1208201820180816","406.56","TPP - Home Care","190496224","17/08/2018","Older People Care Purchasing","OP Care Purchasing (Spot Placements)","R5420"
"Wolverhampton City Council","http://opendatacommunities.org/id/metropolitan-district-council/wolverhampton","706697","Radis Community Care","1208201820180816","203.28","TPP - Home Care","190496224","17/08/2018","Physical Disabilities Care Purchasing","PD Care Purchasing (Spot Placements)","R5420"
"Wolverhampton City Council","http://opendatacommunities.org/id/metropolitan-district-council/wolverhampton","706697","Radis Community Care","1208201820180816","206.91","TPP - Home Care","190496224","17/08/2018","Physical Disabilities Care Purchasing","PD Care Purchasing (Spot Placements)","R5420"
"Wolverhampton City Council","http://opendatacommunities.org/id/metropolitan-district-council/wolverhampton","706697","Radis Community Care","1208201820180816","254.10","TPP - Home Care","190496224","17/08/2018","Older People Care Purchasing","OP Care Purchasing (Spot Placements)","R5420"
"Wolverhampton City Council","http://opendatacommunities.org/id/metropolitan-district-council/wolverhampton","706697","Radis Community Care","1208201820180816","98.01","TPP - Home Care","190496224","17/08/2018","Older People Care Purchasing","OP Care Purchasing (Spot Placements)","R5420"
"Wolverhampton City Council","http://opendatacommunities.org/id/metropolitan-district-council/wolverhampton","706697","Radis Community Care","1208201820180816","101.64","TPP - Home Care","190496224","17/08/2018","Older People Care Purchasing","OP Care Purchasing (Spot Placements)","R5420"
"Wolverhampton City Council","http://opendatacommunities.org/id/metropolitan-district-council/wolverhampton","706697","Radis Community Care","1208201820180816","94.38","TPP - Home Care","190496224","17/08/2018","Older People Care Purchasing","OP Care Purchasing (Spot Placements)","R5420"
"Wolverhampton City Council","http://opendatacommunities.org/id/metropolitan-district-council/wolverhampton","706697","Radis Community Care","1208201820180816","69.00","TPP - Carer Support Service","190496224","17/08/2018","Carer Support","CS Care Purchasing (Spot Placements)","R5421"
"Wolverhampton City Council","http://opendatacommunities.org/id/metropolitan-district-council/wolverhampton","706697","Radis Community Care","1208201820180816","192.39","TPP - Home Care","190496224","17/08/2018","Older People Care Purchasing","OP Care Purchasing (Spot Placements)","R5420"
"Wolverhampton City Council","http://opendatacommunities.org/id/metropolitan-district-council/wolverhampton","706697","Radis Community Care","1208201820180816","185.13","TPP - Home Care","190496224","17/08/2018","Older People Care Purchasing","OP Care Purchasing (Spot Placements)","R5420"
"Wolverhampton City Council","http://opendatacommunities.org/id/metropolitan-district-council/wolverhampton","706697","Radis Community Care","1208201820180816","199.65","TPP - Home Care","190496224","17/08/2018","Older People Care Purchasing","OP Care Purchasing (Spot Placements)","R5420"
"Wolverhampton City Council","http://opendatacommunities.org/id/metropolitan-district-council/wolverhampton","706697","Radis Community Care","1208201820180816","199.65","TPP - Home Care","190496224","17/08/2018","Older People Care Purchasing","OP Care Purchasing (Spot Placements)","R5420"
"Wolverhampton City Council","http://opendatacommunities.org/id/metropolitan-district-council/wolverhampton","706697","Radis Community Care","1208201820180816","210.54","TPP - Home Care","190496224","17/08/2018","Older People Care Purchasing","OP Care Purchasing (Spot Placements)","R5420"
"Wolverhampton City Council","http://opendatacommunities.org/id/metropolitan-district-council/wolverhampton","706697","Radis Community Care","1208201820180816","58.08","TPP - Home Care","190496224","17/08/2018","Older People Care Purchasing","OP Care Purchasing (Spot Placements)","R5420"
"Wolverhampton City Council","http://opendatacommunities.org/id/metropolitan-district-council/wolverhampton","706697","Radis Community Care","1208201820180816","312.18","TPP - Home Care","190496224","17/08/2018","Physical Disabilities Care Purchasing","PD Care Purchasing (Spot Placements)","R5420"
"Wolverhampton City Council","http://opendatacommunities.org/id/metropolitan-district-council/wolverhampton","706697","Radis Community Care","1208201820180816","283.14","TPP - Home Care","190496224","17/08/2018","Physical Disabilities Care Purchasing","PD Care Purchasing (Spot Placements)","R5420"
"Wolverhampton City Council","http://opendatacommunities.org/id/metropolitan-district-council/wolverhampton","706697","Radis Community Care","1208201820180816","192.39","TPP - Home Care","190496224","17/08/2018","Older People Care Purchasing","OP Care Purchasing (Spot Placements)","R5420"
"Wolverhampton City Council","http://opendatacommunities.org/id/metropolitan-district-council/wolverhampton","706697","Radis Community Care","1208201820180816","94.38","TPP - Home Care","190496224","17/08/2018","Physical Disabilities Care Purchasing","PD Care Purchasing (Spot Placements)","R5420"
"Wolverhampton City Council","http://opendatacommunities.org/id/metropolitan-district-council/wolverhampton","706697","Radis Community Care","1208201820180816","217.80","TPP - Home Care","190496224","17/08/2018","Older People Care Purchasing","OP Care Purchasing (Spot Placements)","R5420"
"Wolverhampton City Council","http://opendatacommunities.org/id/metropolitan-district-council/wolverhampton","706697","Radis Community Care","1208201820180816","116.16","TPP - Home Care","190496224","17/08/2018","Older People Care Purchasing","OP Care Purchasing (Spot Placements)","R5420"
"Wolverhampton City Council","http://opendatacommunities.org/id/metropolitan-district-council/wolverhampton","706697","Radis Community Care","1208201820180816","58.08","TPP - Home Care","190496224","17/08/2018","Older People Care Purchasing","OP Care Purchasing (Spot Placements)","R5420"
"Wolverhampton City Council","http://opendatacommunities.org/id/metropolitan-district-council/wolverhampton","706697","Radis Community Care","1208201820180816","21.78","TPP - Home Care","190496224","17/08/2018","Physical Disabilities Care Purchasing","PD Care Purchasing (Spot Placements)","R5420"
"Wolverhampton City Council","http://opendatacommunities.org/id/metropolitan-district-council/wolverhampton","706697","Radis Community Care","1208201820180816","152.46","TPP - Home Care","190496224","17/08/2018","Physical Disabilities Care Purchasing","PD Care Purchasing (Spot Placements)","R5420"
"Wolverhampton City Council","http://opendatacommunities.org/id/metropolitan-district-council/wolverhampton","706697","Radis Community Care","1208201820180816","145.20","TPP - Home Care","190496224","17/08/2018","Physical Disabilities Care Purchasing","PD Care Purchasing (Spot Placements)","R5420"
"Wolverhampton City Council","http://opendatacommunities.org/id/metropolitan-district-council/wolverhampton","706697","Radis Community Care","1208201820180816","50.82","TPP - Home Care","190496224","17/08/2018","Older People Care Purchasing","OP Care Purchasing (Spot Placements)","R5420"
"Wolverhampton City Council","http://opendatacommunities.org/id/metropolitan-district-council/wolverhampton","706697","Radis Community Care","1208201820180816","166.98","TPP - Home Care","190496224","17/08/2018","Physical Disabilities Care Purchasing","PD Care Purchasing (Spot Placements)","R5420"
"Wolverhampton City Council","http://opendatacommunities.org/id/metropolitan-district-council/wolverhampton","706697","Radis Community Care","1208201820180816","174.24","TPP - Home Care","190496224","17/08/2018","Physical Disabilities Care Purchasing","PD Care Purchasing (Spot Placements)","R5420"
"Wolverhampton City Council","http://opendatacommunities.org/id/metropolitan-district-council/wolverhampton","706697","Radis Community Care","1208201820180816","185.13","TPP - Home Care","190496224","17/08/2018","Older People Care Purchasing","OP Care Purchasing (Spot Placements)","R5420"
"Wolverhampton City Council","http://opendatacommunities.org/id/metropolitan-district-council/wolverhampton","706697","Radis Community Care","1208201820180816","101.64","TPP - Home Care","190496224","17/08/2018","Older People Care Purchasing","OP Care Purchasing (Spot Placements)","R5420"
"Wolverhampton City Council","http://opendatacommunities.org/id/metropolitan-district-council/wolverhampton","706697","Radis Community Care","1208201820180816","188.76","TPP - Home Care","190496224","17/08/2018","Older People Care Purchasing","OP Care Purchasing (Spot Placements)","R5420"
"Wolverhampton City Council","http://opendatacommunities.org/id/metropolitan-district-council/wolverhampton","706697","Radis Community Care","1208201820180816","47.19","TPP - Home Care","190496224","17/08/2018","Older People Care Purchasing","OP Care Purchasing (Spot Placements)","R5420"
"Wolverhampton City Council","http://opendatacommunities.org/id/metropolitan-district-council/wolverhampton","706697","Radis Community Care","1208201820180816","232.32","TPP - Home Care","190496224","17/08/2018","Older People Care Purchasing","OP Care Purchasing (Spot Placements)","R5420"
"Wolverhampton City Council","http://opendatacommunities.org/id/metropolitan-district-council/wolverhampton","706697","Radis Community Care","1208201820180816","148.83","TPP - Home Care","190496224","17/08/2018","Older People Care Purchasing","OP Care Purchasing (Spot Placements)","R5420"
"Wolverhampton City Council","http://opendatacommunities.org/id/metropolitan-district-council/wolverhampton","706697","Radis Community Care","1208201820180816","47.19","TPP - Home Care","190496224","17/08/2018","Older People Care Purchasing","OP Care Purchasing (Spot Placements)","R5420"
"Wolverhampton City Council","http://opendatacommunities.org/id/metropolitan-district-council/wolverhampton","706697","Radis Community Care","1208201820180816","108.90","TPP - Home Care","190496224","17/08/2018","Older People Care Purchasing","OP Care Purchasing (Spot Placements)","R5420"
"Wolverhampton City Council","http://opendatacommunities.org/id/metropolitan-district-council/wolverhampton","706697","Radis Community Care","1208201820180816","101.64","TPP - Home Care","190496224","17/08/2018","Older People Care Purchasing","OP Care Purchasing (Spot Placements)","R5420"
"Wolverhampton City Council","http://opendatacommunities.org/id/metropolitan-district-council/wolverhampton","706697","Radis Community Care","1208201820180816","214.17","TPP - Home Care","190496224","17/08/2018","Older People Care Purchasing","OP Care Purchasing (Spot Placements)","R5420"
"Wolverhampton City Council","http://opendatacommunities.org/id/metropolitan-district-council/wolverhampton","706697","Radis Community Care","1208201820180816","112.53","TPP - Home Care","190496224","17/08/2018","Older People Care Purchasing","OP Care Purchasing (Spot Placements)","R5420"
"Wolverhampton City Council","http://opendatacommunities.org/id/metropolitan-district-council/wolverhampton","706697","Radis Community Care","1208201820180816","98.01","TPP - Home Care","190496224","17/08/2018","Older People Care Purchasing","OP Care Purchasing (Spot Placements)","R5420"
"Wolverhampton City Council","http://opendatacommunities.org/id/metropolitan-district-council/wolverhampton","706697","Radis Community Care","1208201820180816","145.20","TPP - Home Care","190496224","17/08/2018","Older People Care Purchasing","OP Care Purchasing (Spot Placements)","R5420"
"Wolverhampton City Council","http://opendatacommunities.org/id/metropolitan-district-council/wolverhampton","706697","Radis Community Care","1208201820180816","101.64","TPP - Home Care","190496224","17/08/2018","Older People Care Purchasing","OP Care Purchasing (Spot Placements)","R5420"
"Wolverhampton City Council","http://opendatacommunities.org/id/metropolitan-district-council/wolverhampton","706697","Radis Community Care","1208201820180816","50.82","TPP - Home Care","190496224","17/08/2018","Older People Care Purchasing","OP Care Purchasing (Spot Placements)","R5420"
"Wolverhampton City Council","http://opendatacommunities.org/id/metropolitan-district-council/wolverhampton","706697","Radis Community Care","1208201820180816","170.61","TPP - Home Care","190496224","17/08/2018","Older People Care Purchasing","OP Care Purchasing (Spot Placements)","R5420"
"Wolverhampton City Council","http://opendatacommunities.org/id/metropolitan-district-council/wolverhampton","706697","Radis Community Care","1208201820180816","101.64","TPP - Home Care","190496224","17/08/2018","Older People Care Purchasing","OP Care Purchasing (Spot Placements)","R5420"
"Wolverhampton City Council","http://opendatacommunities.org/id/metropolitan-district-council/wolverhampton","706697","Radis Community Care","1208201820180816","90.75","TPP - Home Care","190496224","17/08/2018","Older People Care Purchasing","OP Care Purchasing (Spot Placements)","R5420"
"Wolverhampton City Council","http://opendatacommunities.org/id/metropolitan-district-council/wolverhampton","706697","Radis Community Care","1208201820180816","76.23","TPP - Home Care","190496224","17/08/2018","Older People Care Purchasing","OP Care Purchasing (Spot Placements)","R5420"
"Wolverhampton City Council","http://opendatacommunities.org/id/metropolitan-district-council/wolverhampton","706697","Radis Community Care","1208201820180816","185.13","TPP - Home Care","190496224","17/08/2018","Older People Care Purchasing","OP Care Purchasing (Spot Placements)","R5420"
"Wolverhampton City Council","http://opendatacommunities.org/id/metropolitan-district-council/wolverhampton","706697","Radis Community Care","1208201820180816","127.05","TPP - Home Care","190496224","17/08/2018","Older People Care Purchasing","OP Care Purchasing (Spot Placements)","R5420"
"Wolverhampton City Council","http://opendatacommunities.org/id/metropolitan-district-council/wolverhampton","706697","Radis Community Care","1208201820180816","50.82","TPP - Home Care","190496224","17/08/2018","Older People Care Purchasing","OP Care Purchasing (Spot Placements)","R5420"
"Wolverhampton City Council","http://opendatacommunities.org/id/metropolitan-district-council/wolverhampton","706697","Radis Community Care","1208201820180816","148.83","TPP - Home Care","190496224","17/08/2018","Older People Care Purchasing","OP Care Purchasing (Spot Placements)","R5420"
"Wolverhampton City Council","http://opendatacommunities.org/id/metropolitan-district-council/wolverhampton","706697","Radis Community Care","1208201820180816","101.64","TPP - Home Care","190496224","17/08/2018","Older People Care Purchasing","OP Care Purchasing (Spot Placements)","R5420"
"Wolverhampton City Council","http://opendatacommunities.org/id/metropolitan-district-council/wolverhampton","706697","Radis Community Care","1208201820180816","159.72","TPP - Home Care","190496224","17/08/2018","Older People Care Purchasing","OP Care Purchasing (Spot Placements)","R5420"
"Wolverhampton City Council","http://opendatacommunities.org/id/metropolitan-district-council/wolverhampton","706697","Radis Community Care","1208201820180816","159.72","TPP - Home Care","190496224","17/08/2018","Older People Care Purchasing","OP Care Purchasing (Spot Placements)","R5420"
"Wolverhampton City Council","http://opendatacommunities.org/id/metropolitan-district-council/wolverhampton","706697","Radis Community Care","1208201820180816","90.75","TPP - Home Care","190496224","17/08/2018","Older People Care Purchasing","OP Care Purchasing (Spot Placements)","R5420"
"Wolverhampton City Council","http://opendatacommunities.org/id/metropolitan-district-council/wolverhampton","706697","Radis Community Care","1208201820180816","41.40","TPP - Carer Support Service","190496224","17/08/2018","Carer Support","CS Care Purchasing (Spot Placements)","R5421"
"Wolverhampton City Council","http://opendatacommunities.org/id/metropolitan-district-council/wolverhampton","706697","Radis Community Care","1208201820180816","54.45","TPP - Home Care","190496224","17/08/2018","Older People Care Purchasing","OP Care Purchasing (Spot Placements)","R5420"
"Wolverhampton City Council","http://opendatacommunities.org/id/metropolitan-district-council/wolverhampton","706697","Radis Community Care","1208201820180816","72.60","TPP - Home Care","190496224","17/08/2018","Physical Disabilities Care Purchasing","PD Care Purchasing (Spot Placements)","R5420"
"Wolverhampton City Council","http://opendatacommunities.org/id/metropolitan-district-council/wolverhampton","706697","Radis Community Care","1208201820180816","123.42","TPP - Home Care","190496224","17/08/2018","Older People Care Purchasing","OP Care Purchasing (Spot Placements)","R5420"
"Wolverhampton City Council","http://opendatacommunities.org/id/metropolitan-district-council/wolverhampton","706697","Radis Community Care","1208201820180816","217.80","TPP - Home Care","190496224","17/08/2018","Physical Disabilities Care Purchasing","PD Care Purchasing (Spot Placements)","R5420"
"Wolverhampton City Council","http://opendatacommunities.org/id/metropolitan-district-council/wolverhampton","706697","Radis Community Care","1208201820180816","199.65","TPP - Home Care","190496224","17/08/2018","Older People Care Purchasing","OP Care Purchasing (Spot Placements)","R5420"
"Wolverhampton City Council","http://opendatacommunities.org/id/metropolitan-district-council/wolverhampton","706697","Radis Community Care","1208201820180816","43.56","TPP - Home Care","190496224","17/08/2018","Older People Care Purchasing","OP Care Purchasing (Spot Placements)","R5420"
"Wolverhampton City Council","http://opendatacommunities.org/id/metropolitan-district-council/wolverhampton","706697","Radis Community Care","1208201820180816","94.38","TPP - Home Care","190496224","17/08/2018","Older People Care Purchasing","OP Care Purchasing (Spot Placements)","R5420"
"Wolverhampton City Council","http://opendatacommunities.org/id/metropolitan-district-council/wolverhampton","706697","Radis Community Care","1208201820180816","36.30","TPP - Home Care","190496224","17/08/2018","Older People Care Purchasing","OP Care Purchasing (Spot Placements)","R5420"
"Wolverhampton City Council","http://opendatacommunities.org/id/metropolitan-district-council/wolverhampton","706697","Radis Community Care","1208201820180816","29.04","TPP - Home Care","190496224","17/08/2018","Older People Care Purchasing","OP Care Purchasing (Spot Placements)","R5420"
"Wolverhampton City Council","http://opendatacommunities.org/id/metropolitan-district-council/wolverhampton","706697","Radis Community Care","1208201820180816","98.01","TPP - Home Care","190496224","17/08/2018","Older People Care Purchasing","OP Care Purchasing (Spot Placements)","R5420"
"Wolverhampton City Council","http://opendatacommunities.org/id/metropolitan-district-council/wolverhampton","706697","Radis Community Care","1208201820180816","50.82","TPP - Home Care","190496224","17/08/2018","Older People Care Purchasing","OP Care Purchasing (Spot Placements)","R5420"
"Wolverhampton City Council","http://opendatacommunities.org/id/metropolitan-district-council/wolverhampton","706697","Radis Community Care","1208201820180816","50.82","TPP - Home Care","190496224","17/08/2018","Older People Care Purchasing","OP Care Purchasing (Spot Placements)","R5420"
"Wolverhampton City Council","http://opendatacommunities.org/id/metropolitan-district-council/wolverhampton","706697","Radis Community Care","1208201820180816","50.82","TPP - Home Care","190496224","17/08/2018","Older People Care Purchasing","OP Care Purchasing (Spot Placements)","R5420"
"Wolverhampton City Council","http://opendatacommunities.org/id/metropolitan-district-council/wolverhampton","706697","Radis Community Care","1208201820180816","47.19","TPP - Home Care","190496224","17/08/2018","Older People Care Purchasing","OP Care Purchasing (Spot Placements)","R5420"
"Wolverhampton City Council","http://opendatacommunities.org/id/metropolitan-district-council/wolverhampton","706697","Radis Community Care","1208201820180816","228.69","TPP - Home Care","190496224","17/08/2018","Older People Care Purchasing","OP Care Purchasing (Spot Placements)","R5420"
"Wolverhampton City Council","http://opendatacommunities.org/id/metropolitan-district-council/wolverhampton","706697","Radis Community Care","1208201820180816","239.58","TPP - Home Care","190496224","17/08/2018","Older People Care Purchasing","OP Care Purchasing (Spot Placements)","R5420"
"Wolverhampton City Council","http://opendatacommunities.org/id/metropolitan-district-council/wolverhampton","706697","Radis Community Care","1208201820180816","101.64","TPP - Home Care","190496224","17/08/2018","Older People Care Purchasing","OP Care Purchasing (Spot Placements)","R5420"
"Wolverhampton City Council","http://opendatacommunities.org/id/metropolitan-district-council/wolverhampton","706697","Radis Community Care","1208201820180816","98.01","TPP - Home Care","190496224","17/08/2018","Older People Care Purchasing","OP Care Purchasing (Spot Placements)","R5420"
"Wolverhampton City Council","http://opendatacommunities.org/id/metropolitan-district-council/wolverhampton","706697","Radis Community Care","1208201820180816","192.39","TPP - Home Care","190496224","17/08/2018","Older People Care Purchasing","OP Care Purchasing (Spot Placements)","R5420"
"Wolverhampton City Council","http://opendatacommunities.org/id/metropolitan-district-council/wolverhampton","706697","Radis Community Care","1208201820180816","177.87","TPP - Home Care","190496224","17/08/2018","Older People Care Purchasing","OP Care Purchasing (Spot Placements)","R5420"
"Wolverhampton City Council","http://opendatacommunities.org/id/metropolitan-district-council/wolverhampton","706697","Radis Community Care","1208201820180816","101.64","TPP - Home Care","190496224","17/08/2018","Older People Care Purchasing","OP Care Purchasing (Spot Placements)","R5420"
"Wolverhampton City Council","http://opendatacommunities.org/id/metropolitan-district-council/wolverhampton","706697","Radis Community Care","1208201820180816","50.82","TPP - Home Care","190496224","17/08/2018","Older People Care Purchasing","OP Care Purchasing (Spot Placements)","R5420"
"Wolverhampton City Council","http://opendatacommunities.org/id/metropolitan-district-council/wolverhampton","706697","Radis Community Care","1208201820180816","127.05","TPP - Home Care","190496224","17/08/2018","Older People Care Purchasing","OP Care Purchasing (Spot Placements)","R5420"
"Wolverhampton City Council","http://opendatacommunities.org/id/metropolitan-district-council/wolverhampton","706697","Radis Community Care","1208201820180816","68.97","TPP - Home Care","190496224","17/08/2018","Older People Care Purchasing","OP Care Purchasing (Spot Placements)","R5420"
"Wolverhampton City Council","http://opendatacommunities.org/id/metropolitan-district-council/wolverhampton","706697","Radis Community Care","19081820180828","196.02","TPP - Home Care","190500086","29/08/2018","Older People Care Purchasing","OP Care Purchasing (Spot Placements)","R5420"
"Wolverhampton City Council","http://opendatacommunities.org/id/metropolitan-district-council/wolverhampton","706697","Radis Community Care","19081820180828","185.13","TPP - Home Care","190500086","29/08/2018","Older People Care Purchasing","OP Care Purchasing (Spot Placements)","R5420"
"Wolverhampton City Council","http://opendatacommunities.org/id/metropolitan-district-council/wolverhampton","706697","Radis Community Care","19081820180828","54.45","TPP - Home Care","190500086","29/08/2018","Older People Care Purchasing","OP Care Purchasing (Spot Placements)","R5420"
"Wolverhampton City Council","http://opendatacommunities.org/id/metropolitan-district-council/wolverhampton","706697","Radis Community Care","19081820180828","50.82","TPP - Home Care","190500086","29/08/2018","Physical Disabilities Care Purchasing","PD Care Purchasing (Spot Placements)","R5420"
"Wolverhampton City Council","http://opendatacommunities.org/id/metropolitan-district-council/wolverhampton","706697","Radis Community Care","19081820180828","50.82","TPP - Home Care","190500086","29/08/2018","Physical Disabilities Care Purchasing","PD Care Purchasing (Spot Placements)","R5420"
"Wolverhampton City Council","http://opendatacommunities.org/id/metropolitan-district-council/wolverhampton","706697","Radis Community Care","19081820180828","94.38","TPP - Home Care","190500086","29/08/2018","Older People Care Purchasing","OP Care Purchasing (Spot Placements)","R5420"
"Wolverhampton City Council","http://opendatacommunities.org/id/metropolitan-district-council/wolverhampton","706697","Radis Community Care","19081820180828","196.02","TPP - Home Care","190500086","29/08/2018","Physical Disabilities Care Purchasing","PD Care Purchasing (Spot Placements)","R5420"
"Wolverhampton City Council","http://opendatacommunities.org/id/metropolitan-district-council/wolverhampton","706697","Radis Community Care","19081820180828","199.65","TPP - Home Care","190500086","29/08/2018","Physical Disabilities Care Purchasing","PD Care Purchasing (Spot Placements)","R5420"
"Wolverhampton City Council","http://opendatacommunities.org/id/metropolitan-district-council/wolverhampton","706697","Radis Community Care","19081820180828","214.17","TPP - Home Care","190500086","29/08/2018","Older People Care Purchasing","OP Care Purchasing (Spot Placements)","R5420"
"Wolverhampton City Council","http://opendatacommunities.org/id/metropolitan-district-council/wolverhampton","706697","Radis Community Care","19081820180828","32.67","TPP - Home Care","190500086","29/08/2018","Older People Care Purchasing","OP Care Purchasing (Spot Placements)","R5420"
"Wolverhampton City Council","http://opendatacommunities.org/id/metropolitan-district-council/wolverhampton","706697","Radis Community Care","19081820180828","497.31","TPP - Home Care","190500086","29/08/2018","Physical Disabilities Care Purchasing","PD Care Purchasing (Spot Placements)","R5420"
"Wolverhampton City Council","http://opendatacommunities.org/id/metropolitan-district-council/wolverhampton","706697","Radis Community Care","19081820180828","453.75","TPP - Home Care","190500086","29/08/2018","Physical Disabilities Care Purchasing","PD Care Purchasing (Spot Placements)","R5420"
"Wolverhampton City Council","http://opendatacommunities.org/id/metropolitan-district-council/wolverhampton","706697","Radis Community Care","19081820180828","79.86","TPP - Home Care","190500086","29/08/2018","Learning Disabilities Care Purchasing","LD Care Purchasing (Spot Placements)","R5420"
"Wolverhampton City Council","http://opendatacommunities.org/id/metropolitan-district-council/wolverhampton","706697","Radis Community Care","19081820180828","221.43","TPP - Home Care","190500086","29/08/2018","Older People Care Purchasing","OP Care Purchasing (Spot Placements)","R5420"
"Wolverhampton City Council","http://opendatacommunities.org/id/metropolitan-district-council/wolverhampton","706697","Radis Community Care","19081820180828","61.71","TPP - Home Care","190500086","29/08/2018","Older People Care Purchasing","OP Care Purchasing (Spot Placements)","R5420"
"Wolverhampton City Council","http://opendatacommunities.org/id/metropolitan-district-council/wolverhampton","706697","Radis Community Care","19081820180828","14.52","TPP - Home Care","190500086","29/08/2018","Older People Care Purchasing","OP Care Purchasing (Spot Placements)","R5420"
"Wolverhampton City Council","http://opendatacommunities.org/id/metropolitan-district-council/wolverhampton","706697","Radis Community Care","19081820180828","98.01","TPP - Home Care","190500086","29/08/2018","Older People Care Purchasing","OP Care Purchasing (Spot Placements)","R5420"
"Wolverhampton City Council","http://opendatacommunities.org/id/metropolitan-district-council/wolverhampton","706697","Radis Community Care","19081820180828","101.64","TPP - Home Care","190500086","29/08/2018","Older People Care Purchasing","OP Care Purchasing (Spot Placements)","R5420"
"Wolverhampton City Council","http://opendatacommunities.org/id/metropolitan-district-council/wolverhampton","706697","Radis Community Care","19081820180828","50.82","TPP - Home Care","190500086","29/08/2018","Older People Care Purchasing","OP Care Purchasing (Spot Placements)","R5420"
"Wolverhampton City Council","http://opendatacommunities.org/id/metropolitan-district-council/wolverhampton","706697","Radis Community Care","19081820180828","50.82","TPP - Home Care","190500086","29/08/2018","Older People Care Purchasing","OP Care Purchasing (Spot Placements)","R5420"
"Wolverhampton City Council","http://opendatacommunities.org/id/metropolitan-district-council/wolverhampton","706697","Radis Community Care","19081820180828","98.01","TPP - Home Care","190500086","29/08/2018","Older People Care Purchasing","OP Care Purchasing (Spot Placements)","R5420"
"Wolverhampton City Council","http://opendatacommunities.org/id/metropolitan-district-council/wolverhampton","706697","Radis Community Care","19081820180828","21.78","TPP - Home Care","190500086","29/08/2018","Physical Disabilities Care Purchasing","PD Care Purchasing (Spot Placements)","R5420"
"Wolverhampton City Council","http://opendatacommunities.org/id/metropolitan-district-council/wolverhampton","706697","Radis Community Care","19081820180828","185.13","TPP - Home Care","190500086","29/08/2018","Physical Disabilities Care Purchasing","PD Care Purchasing (Spot Placements)","R5420"
"Wolverhampton City Council","http://opendatacommunities.org/id/metropolitan-district-council/wolverhampton","706697","Radis Community Care","19081820180828","39.93","TPP - Home Care","190500086","29/08/2018","Older People Care Purchasing","OP Care Purchasing (Spot Placements)","R5420"
"Wolverhampton City Council","http://opendatacommunities.org/id/metropolitan-district-council/wolverhampton","706697","Radis Community Care","19081820180828","72.60","TPP - Home Care","190500086","29/08/2018","Physical Disabilities Care Purchasing","PD Care Purchasing (Spot Placements)","R5420"
"Wolverhampton City Council","http://opendatacommunities.org/id/metropolitan-district-council/wolverhampton","706697","Radis Community Care","19081820180828","72.60","TPP - Home Care","190500086","29/08/2018","Physical Disabilities Care Purchasing","PD Care Purchasing (Spot Placements)","R5420"
"Wolverhampton City Council","http://opendatacommunities.org/id/metropolitan-district-council/wolverhampton","706697","Radis Community Care","19081820180828","32.67","TPP - Home Care","190500086","29/08/2018","Physical Disabilities Care Purchasing","PD Care Purchasing (Spot Placements)","R5420"
"Wolverhampton City Council","http://opendatacommunities.org/id/metropolitan-district-council/wolverhampton","706697","Radis Community Care","19081820180828","199.65","TPP - Home Care","190500086","29/08/2018","Older People Care Purchasing","OP Care Purchasing (Spot Placements)","R5420"
"Wolverhampton City Council","http://opendatacommunities.org/id/metropolitan-district-council/wolverhampton","706697","Radis Community Care","19081820180828","221.43","TPP - Home Care","190500086","29/08/2018","Older People Care Purchasing","OP Care Purchasing (Spot Placements)","R5420"
"Wolverhampton City Council","http://opendatacommunities.org/id/metropolitan-district-council/wolverhampton","706697","Radis Community Care","19081820180828","228.69","TPP - Home Care","190500086","29/08/2018","Older People Care Purchasing","OP Care Purchasing (Spot Placements)","R5420"
"Wolverhampton City Council","http://opendatacommunities.org/id/metropolitan-district-council/wolverhampton","706697","Radis Community Care","19081820180828","163.35","TPP - Home Care","190500086","29/08/2018","Older People Care Purchasing","OP Care Purchasing (Spot Placements)","R5420"
"Wolverhampton City Council","http://opendatacommunities.org/id/metropolitan-district-council/wolverhampton","706697","Radis Community Care","19081820180828","105.27","TPP - Home Care","190500086","29/08/2018","Older People Care Purchasing","OP Care Purchasing (Spot Placements)","R5420"
"Wolverhampton City Council","http://opendatacommunities.org/id/metropolitan-district-council/wolverhampton","706697","Radis Community Care","19081820180828","50.82","TPP - Home Care","190500086","29/08/2018","Older People Care Purchasing","OP Care Purchasing (Spot Placements)","R5420"
"Wolverhampton City Council","http://opendatacommunities.org/id/metropolitan-district-council/wolverhampton","706697","Radis Community Care","19081820180828","152.46","TPP - Home Care","190500086","29/08/2018","Older People Care Purchasing","OP Care Purchasing (Spot Placements)","R5420"
"Wolverhampton City Council","http://opendatacommunities.org/id/metropolitan-district-council/wolverhampton","706697","Radis Community Care","19081820180828","152.46","TPP - Home Care","190500086","29/08/2018","Older People Care Purchasing","OP Care Purchasing (Spot Placements)","R5420"
"Wolverhampton City Council","http://opendatacommunities.org/id/metropolitan-district-council/wolverhampton","706697","Radis Community Care","19081820180828","152.46","TPP - Home Care","190500086","29/08/2018","Older People Care Purchasing","OP Care Purchasing (Spot Placements)","R5420"
"Wolverhampton City Council","http://opendatacommunities.org/id/metropolitan-district-council/wolverhampton","706697","Radis Community Care","19081820180828","76.23","TPP - Home Care","190500086","29/08/2018","Older People Care Purchasing","OP Care Purchasing (Spot Placements)","R5420"
"Wolverhampton City Council","http://opendatacommunities.org/id/metropolitan-district-council/wolverhampton","706697","Radis Community Care","19081820180828","83.49","TPP - Home Care","190500086","29/08/2018","Older People Care Purchasing","OP Care Purchasing (Spot Placements)","R5420"
"Wolverhampton City Council","http://opendatacommunities.org/id/metropolitan-district-council/wolverhampton","706697","Radis Community Care","19081820180828","36.30","TPP - Home Care","190500086","29/08/2018","Older People Care Purchasing","OP Care Purchasing (Spot Placements)","R5420"
"Wolverhampton City Council","http://opendatacommunities.org/id/metropolitan-district-council/wolverhampton","706697","Radis Community Care","19081820180828","36.30","TPP - Home Care","190500086","29/08/2018","Older People Care Purchasing","OP Care Purchasing (Spot Placements)","R5420"
"Wolverhampton City Council","http://opendatacommunities.org/id/metropolitan-district-council/wolverhampton","706697","Radis Community Care","19081820180828","87.12","TPP - Home Care","190500086","29/08/2018","Older People Care Purchasing","OP Care Purchasing (Spot Placements)","R5420"
"Wolverhampton City Council","http://opendatacommunities.org/id/metropolitan-district-council/wolverhampton","706697","Radis Community Care","19081820180828","257.73","TPP - Home Care","190500086","29/08/2018","Physical Disabilities Care Purchasing","PD Care Purchasing (Spot Placements)","R5420"
"Wolverhampton City Council","http://opendatacommunities.org/id/metropolitan-district-council/wolverhampton","706697","Radis Community Care","19081820180828","294.03","TPP - Home Care","190500086","29/08/2018","Physical Disabilities Care Purchasing","PD Care Purchasing (Spot Placements)","R5420"
"Wolverhampton City Council","http://opendatacommunities.org/id/metropolitan-district-council/wolverhampton","706697","Radis Community Care","19081820180828","98.01","TPP - Home Care","190500086","29/08/2018","Older People Care Purchasing","OP Care Purchasing (Spot Placements)","R5420"
"Wolverhampton City Council","http://opendatacommunities.org/id/metropolitan-district-council/wolverhampton","706697","Radis Community Care","19081820180828","36.30","TPP - Home Care","190500086","29/08/2018","Older People Care Purchasing","OP Care Purchasing (Spot Placements)","R5420"
"Wolverhampton City Council","http://opendatacommunities.org/id/metropolitan-district-council/wolverhampton","706697","Radis Community Care","19081820180828","123.42","TPP - Home Care","190500086","29/08/2018","Older People Care Purchasing","OP Care Purchasing (Spot Placements)","R5420"
"Wolverhampton City Council","http://opendatacommunities.org/id/metropolitan-district-council/wolverhampton","706697","Radis Community Care","19081820180828","119.79","TPP - Home Care","190500086","29/08/2018","Older People Care Purchasing","OP Care Purchasing (Spot Placements)","R5420"
"Wolverhampton City Council","http://opendatacommunities.org/id/metropolitan-district-council/wolverhampton","706697","Radis Community Care","19081820180828","25.41","TPP - Home Care","190500086","29/08/2018","Physical Disabilities Care Purchasing","PD Care Purchasing (Spot Placements)","R5420"
"Wolverhampton City Council","http://opendatacommunities.org/id/metropolitan-district-council/wolverhampton","706697","Radis Community Care","19081820180828","206.91","TPP - Home Care","190500086","29/08/2018","Older People Care Purchasing","OP Care Purchasing (Spot Placements)","R5420"
"Wolverhampton City Council","http://opendatacommunities.org/id/metropolitan-district-council/wolverhampton","706697","Radis Community Care","19081820180828","101.64","TPP - Home Care","190500086","29/08/2018","Older People Care Purchasing","OP Care Purchasing (Spot Placements)","R5420"
"Wolverhampton City Council","http://opendatacommunities.org/id/metropolitan-district-council/wolverhampton","706697","Radis Community Care","19081820180828","192.39","TPP - Home Care","190500086","29/08/2018","Older People Care Purchasing","OP Care Purchasing (Spot Placements)","R5420"
"Wolverhampton City Council","http://opendatacommunities.org/id/metropolitan-district-council/wolverhampton","706697","Radis Community Care","19081820180828","177.87","TPP - Home Care","190500086","29/08/2018","Older People Care Purchasing","OP Care Purchasing (Spot Placements)","R5420"
"Wolverhampton City Council","http://opendatacommunities.org/id/metropolitan-district-council/wolverhampton","706697","Radis Community Care","19081820180828","25.41","TPP - Home Care","190500086","29/08/2018","Physical Disabilities Care Purchasing","PD Care Purchasing (Spot Placements)","R5420"
"Wolverhampton City Council","http://opendatacommunities.org/id/metropolitan-district-council/wolverhampton","706697","Radis Community Care","19081820180828","21.78","TPP - Home Care","190500086","29/08/2018","Physical Disabilities Care Purchasing","PD Care Purchasing (Spot Placements)","R5420"
"Wolverhampton City Council","http://opendatacommunities.org/id/metropolitan-district-council/wolverhampton","706697","Radis Community Care","19081820180828","50.82","TPP - Home Care","190500086","29/08/2018","Older People Care Purchasing","OP Care Purchasing (Spot Placements)","R5420"
"Wolverhampton City Council","http://opendatacommunities.org/id/metropolitan-district-council/wolverhampton","706697","Radis Community Care","19081820180828","159.72","TPP - Home Care","190500086","29/08/2018","Physical Disabilities Care Purchasing","PD Care Purchasing (Spot Placements)","R5420"
"Wolverhampton City Council","http://opendatacommunities.org/id/metropolitan-district-council/wolverhampton","706697","Radis Community Care","19081820180828","181.50","TPP - Home Care","190500086","29/08/2018","Physical Disabilities Care Purchasing","PD Care Purchasing (Spot Placements)","R5420"
"Wolverhampton City Council","http://opendatacommunities.org/id/metropolitan-district-council/wolverhampton","706697","Radis Community Care","19081820180828","50.82","TPP - Home Care","190500086","29/08/2018","Older People Care Purchasing","OP Care Purchasing (Spot Placements)","R5420"
"Wolverhampton City Council","http://opendatacommunities.org/id/metropolitan-district-council/wolverhampton","706697","Radis Community Care","19081820180828","170.61","TPP - Home Care","190500086","29/08/2018","Older People Care Purchasing","OP Care Purchasing (Spot Placements)","R5420"
"Wolverhampton City Council","http://opendatacommunities.org/id/metropolitan-district-council/wolverhampton","706697","Radis Community Care","19081820180828","101.64","TPP - Home Care","190500086","29/08/2018","Older People Care Purchasing","OP Care Purchasing (Spot Placements)","R5420"
"Wolverhampton City Council","http://opendatacommunities.org/id/metropolitan-district-council/wolverhampton","706697","Radis Community Care","19081820180828","83.49","TPP - Home Care","190500086","29/08/2018","Older People Care Purchasing","OP Care Purchasing (Spot Placements)","R5420"
"Wolverhampton City Council","http://opendatacommunities.org/id/metropolitan-district-council/wolverhampton","706697","Radis Community Care","19081820180828","76.23","TPP - Home Care","190500086","29/08/2018","Older People Care Purchasing","OP Care Purchasing (Spot Placements)","R5420"
"Wolverhampton City Council","http://opendatacommunities.org/id/metropolitan-district-council/wolverhampton","706697","Radis Community Care","19081820180828","196.02","TPP - Home Care","190500086","29/08/2018","Older People Care Purchasing","OP Care Purchasing (Spot Placements)","R5420"
"Wolverhampton City Council","http://opendatacommunities.org/id/metropolitan-district-council/wolverhampton","706697","Radis Community Care","19081820180828","127.05","TPP - Home Care","190500086","29/08/2018","Older People Care Purchasing","OP Care Purchasing (Spot Placements)","R5420"
"Wolverhampton City Council","http://opendatacommunities.org/id/metropolitan-district-council/wolverhampton","706697","Radis Community Care","19081820180828","50.82","TPP - Home Care","190500086","29/08/2018","Older People Care Purchasing","OP Care Purchasing (Spot Placements)","R5420"
"Wolverhampton City Council","http://opendatacommunities.org/id/metropolitan-district-council/wolverhampton","706697","Radis Community Care","19081820180828","50.82","TPP - Home Care","190500086","29/08/2018","Older People Care Purchasing","OP Care Purchasing (Spot Placements)","R5420"
"Wolverhampton City Council","http://opendatacommunities.org/id/metropolitan-district-council/wolverhampton","706697","Radis Community Care","19081820180828","50.82","TPP - Home Care","190500086","29/08/2018","Older People Care Purchasing","OP Care Purchasing (Spot Placements)","R5420"
"Wolverhampton City Council","http://opendatacommunities.org/id/metropolitan-district-council/wolverhampton","706697","Radis Community Care","19081820180828","50.82","TPP - Home Care","190500086","29/08/2018","Older People Care Purchasing","OP Care Purchasing (Spot Placements)","R5420"
"Wolverhampton City Council","http://opendatacommunities.org/id/metropolitan-district-council/wolverhampton","706697","Radis Community Care","19081820180828","47.19","TPP - Home Care","190500086","29/08/2018","Older People Care Purchasing","OP Care Purchasing (Spot Placements)","R5420"
"Wolverhampton City Council","http://opendatacommunities.org/id/metropolitan-district-council/wolverhampton","706697","Radis Community Care","19081820180828","228.69","TPP - Home Care","190500086","29/08/2018","Older People Care Purchasing","OP Care Purchasing (Spot Placements)","R5420"
"Wolverhampton City Council","http://opendatacommunities.org/id/metropolitan-district-council/wolverhampton","706697","Radis Community Care","19081820180828","254.10","TPP - Home Care","190500086","29/08/2018","Older People Care Purchasing","OP Care Purchasing (Spot Placements)","R5420"
"Wolverhampton City Council","http://opendatacommunities.org/id/metropolitan-district-council/wolverhampton","706697","Radis Community Care","19081820180828","98.01","TPP - Home Care","190500086","29/08/2018","Older People Care Purchasing","OP Care Purchasing (Spot Placements)","R5420"
"Wolverhampton City Council","http://opendatacommunities.org/id/metropolitan-district-council/wolverhampton","706697","Radis Community Care","19081820180828","116.16","TPP - Home Care","190500086","29/08/2018","Older People Care Purchasing","OP Care Purchasing (Spot Placements)","R5420"
"Wolverhampton City Council","http://opendatacommunities.org/id/metropolitan-district-council/wolverhampton","706697","Radis Community Care","19081820180828","101.64","TPP - Home Care","190500086","29/08/2018","Older People Care Purchasing","OP Care Purchasing (Spot Placements)","R5420"
"Wolverhampton City Council","http://opendatacommunities.org/id/metropolitan-district-council/wolverhampton","706697","Radis Community Care","19081820180828","170.61","TPP - Home Care","190500086","29/08/2018","Older People Care Purchasing","OP Care Purchasing (Spot Placements)","R5420"
"Wolverhampton City Council","http://opendatacommunities.org/id/metropolitan-district-council/wolverhampton","706697","Radis Community Care","19081820180828","181.50","TPP - Home Care","190500086","29/08/2018","Older People Care Purchasing","OP Care Purchasing (Spot Placements)","R5420"
"Wolverhampton City Council","http://opendatacommunities.org/id/metropolitan-district-council/wolverhampton","706697","Radis Community Care","19081820180828","90.75","TPP - Home Care","190500086","29/08/2018","Older People Care Purchasing","OP Care Purchasing (Spot Placements)","R5420"
"Wolverhampton City Council","http://opendatacommunities.org/id/metropolitan-district-council/wolverhampton","706697","Radis Community Care","19081820180828","41.40","TPP - Carer Support Service","190500086","29/08/2018","Carer Support","CS Care Purchasing (Spot Placements)","R5421"
"Wolverhampton City Council","http://opendatacommunities.org/id/metropolitan-district-council/wolverhampton","706697","Radis Community Care","19081820180828","235.95","TPP - Home Care","190500086","29/08/2018","Older People Care Purchasing","OP Care Purchasing (Spot Placements)","R5420"
"Wolverhampton City Council","http://opendatacommunities.org/id/metropolitan-district-council/wolverhampton","706697","Radis Community Care","19081820180828","199.65","TPP - Home Care","190500086","29/08/2018","Older People Care Purchasing","OP Care Purchasing (Spot Placements)","R5420"
"Wolverhampton City Council","http://opendatacommunities.org/id/metropolitan-district-council/wolverhampton","706697","Radis Community Care","19081820180828","177.87","TPP - Home Care","190500086","29/08/2018","Older People Care Purchasing","OP Care Purchasing (Spot Placements)","R5420"
"Wolverhampton City Council","http://opendatacommunities.org/id/metropolitan-district-council/wolverhampton","706697","Radis Community Care","19081820180828","101.64","TPP - Home Care","190500086","29/08/2018","Older People Care Purchasing","OP Care Purchasing (Spot Placements)","R5420"
"Wolverhampton City Council","http://opendatacommunities.org/id/metropolitan-district-council/wolverhampton","706697","Radis Community Care","19081820180828","148.83","TPP - Home Care","190500086","29/08/2018","Older People Care Purchasing","OP Care Purchasing (Spot Placements)","R5420"
"Wolverhampton City Council","http://opendatacommunities.org/id/metropolitan-district-council/wolverhampton","706697","Radis Community Care","19081820180828","101.64","TPP - Home Care","190500086","29/08/2018","Older People Care Purchasing","OP Care Purchasing (Spot Placements)","R5420"
"Wolverhampton City Council","http://opendatacommunities.org/id/metropolitan-district-council/wolverhampton","706697","Radis Community Care","19081820180828","388.41","TPP - Home Care","190500086","29/08/2018","Older People Care Purchasing","OP Care Purchasing (Spot Placements)","R5420"
"Wolverhampton City Council","http://opendatacommunities.org/id/metropolitan-district-council/wolverhampton","706697","Radis Community Care","19081820180828","221.43","TPP - Home Care","190500086","29/08/2018","Physical Disabilities Care Purchasing","PD Care Purchasing (Spot Placements)","R5420"
"Wolverhampton City Council","http://opendatacommunities.org/id/metropolitan-district-council/wolverhampton","706697","Radis Community Care","19081820180828","206.91","TPP - Home Care","190500086","29/08/2018","Physical Disabilities Care Purchasing","PD Care Purchasing (Spot Placements)","R5420"
"Wolverhampton City Council","http://opendatacommunities.org/id/metropolitan-district-council/wolverhampton","706697","Radis Community Care","19081820180828","257.73","TPP - Home Care","190500086","29/08/2018","Older People Care Purchasing","OP Care Purchasing (Spot Placements)","R5420"
"Wolverhampton City Council","http://opendatacommunities.org/id/metropolitan-district-council/wolverhampton","706697","Radis Community Care","19081820180828","203.28","TPP - Home Care","190500086","29/08/2018","Older People Care Purchasing","OP Care Purchasing (Spot Placements)","R5420"
"Wolverhampton City Council","http://opendatacommunities.org/id/metropolitan-district-council/wolverhampton","706697","Radis Community Care","19081820180828","101.64","TPP - Home Care","190500086","29/08/2018","Physical Disabilities Care Purchasing","PD Care Purchasing (Spot Placements)","R5420"
"Wolverhampton City Council","http://opendatacommunities.org/id/metropolitan-district-council/wolverhampton","706697","Radis Community Care","19081820180828","101.64","TPP - Home Care","190500086","29/08/2018","Physical Disabilities Care Purchasing","PD Care Purchasing (Spot Placements)","R5420"
"Wolverhampton City Council","http://opendatacommunities.org/id/metropolitan-district-council/wolverhampton","706697","Radis Community Care","19081820180828","199.65","TPP - Home Care","190500086","29/08/2018","Older People Care Purchasing","OP Care Purchasing (Spot Placements)","R5420"
"Wolverhampton City Council","http://opendatacommunities.org/id/metropolitan-district-council/wolverhampton","706697","Radis Community Care","19081820180828","101.64","TPP - Home Care","190500086","29/08/2018","Older People Care Purchasing","OP Care Purchasing (Spot Placements)","R5420"
"Wolverhampton City Council","http://opendatacommunities.org/id/metropolitan-district-council/wolverhampton","706697","Radis Community Care","19081820180828","101.64","TPP - Home Care","190500086","29/08/2018","Older People Care Purchasing","OP Care Purchasing (Spot Placements)","R5420"
"Wolverhampton City Council","http://opendatacommunities.org/id/metropolitan-district-council/wolverhampton","706697","Radis Community Care","19081820180828","94.38","TPP - Home Care","190500086","29/08/2018","Older People Care Purchasing","OP Care Purchasing (Spot Placements)","R5420"
"Wolverhampton City Council","http://opendatacommunities.org/id/metropolitan-district-council/wolverhampton","706697","Radis Community Care","19081820180828","36.30","TPP - Home Care","190500086","29/08/2018","Older People Care Purchasing","OP Care Purchasing (Spot Placements)","R5420"
"Wolverhampton City Council","http://opendatacommunities.org/id/metropolitan-district-council/wolverhampton","706697","Radis Community Care","19081820180828","105.27","TPP - Home Care","190500086","29/08/2018","Older People Care Purchasing","OP Care Purchasing (Spot Placements)","R5420"
"Wolverhampton City Council","http://opendatacommunities.org/id/metropolitan-district-council/wolverhampton","706697","Radis Community Care","19081820180828","101.64","TPP - Home Care","190500086","29/08/2018","Older People Care Purchasing","OP Care Purchasing (Spot Placements)","R5420"
"Wolverhampton City Council","http://opendatacommunities.org/id/metropolitan-district-council/wolverhampton","706697","Radis Community Care","19081820180828","98.01","TPP - Home Care","190500086","29/08/2018","Older People Care Purchasing","OP Care Purchasing (Spot Placements)","R5420"
"Wolverhampton City Council","http://opendatacommunities.org/id/metropolitan-district-council/wolverhampton","706697","Radis Community Care","19081820180828","69.00","TPP - Carer Support Service","190500086","29/08/2018","Carer Support","CS Care Purchasing (Spot Placements)","R5421"
"Wolverhampton City Council","http://opendatacommunities.org/id/metropolitan-district-council/wolverhampton","706697","Radis Community Care","19081820180828","188.76","TPP - Home Care","190500086","29/08/2018","Older People Care Purchasing","OP Care Purchasing (Spot Placements)","R5420"
"Wolverhampton City Council","http://opendatacommunities.org/id/metropolitan-district-council/wolverhampton","706697","Radis Community Care","19081820180828","181.50","TPP - Home Care","190500086","29/08/2018","Older People Care Purchasing","OP Care Purchasing (Spot Placements)","R5420"
"Wolverhampton City Council","http://opendatacommunities.org/id/metropolitan-district-council/wolverhampton","706697","Radis Community Care","19081820180828","196.02","TPP - Home Care","190500086","29/08/2018","Older People Care Purchasing","OP Care Purchasing (Spot Placements)","R5420"
"Wolverhampton City Council","http://opendatacommunities.org/id/metropolitan-district-council/wolverhampton","706697","Radis Community Care","19081820180828","25.41","TPP - Home Care","190500086","29/08/2018","Older People Care Purchasing","OP Care Purchasing (Spot Placements)","R5420"
"Wolverhampton City Council","http://opendatacommunities.org/id/metropolitan-district-council/wolverhampton","706697","Radis Community Care","19081820180828","206.91","TPP - Home Care","190500086","29/08/2018","Older People Care Purchasing","OP Care Purchasing (Spot Placements)","R5420"
"Wolverhampton City Council","http://opendatacommunities.org/id/metropolitan-district-council/wolverhampton","706697","Radis Community Care","19081820180828","76.23","TPP - Home Care","190500086","29/08/2018","Older People Care Purchasing","OP Care Purchasing (Spot Placements)","R5420"
"Wolverhampton City Council","http://opendatacommunities.org/id/metropolitan-district-council/wolverhampton","706697","Radis Community Care","19081820180828","41.40","TPP - Carer Support Service","190500086","29/08/2018","Carer Support","CS Care Purchasing (Spot Placements)","R5421"
"Wolverhampton City Council","http://opendatacommunities.org/id/metropolitan-district-council/wolverhampton","706697","Radis Community Care","19081820180828","199.65","TPP - Home Care","190500086","29/08/2018","Older People Care Purchasing","OP Care Purchasing (Spot Placements)","R5420"
"Wolverhampton City Council","http://opendatacommunities.org/id/metropolitan-district-council/wolverhampton","706697","Radis Community Care","19081820180828","203.28","TPP - Home Care","190500086","29/08/2018","Older People Care Purchasing","OP Care Purchasing (Spot Placements)","R5420"
"Wolverhampton City Council","http://opendatacommunities.org/id/metropolitan-district-council/wolverhampton","706697","Radis Community Care","19081820180828","196.02","TPP - Home Care","190500086","29/08/2018","Older People Care Purchasing","OP Care Purchasing (Spot Placements)","R5420"
"Wolverhampton City Council","http://opendatacommunities.org/id/metropolitan-district-council/wolverhampton","706697","Radis Community Care","19081820180828","210.54","TPP - Home Care","190500086","29/08/2018","Older People Care Purchasing","OP Care Purchasing (Spot Placements)","R5420"
"Wolverhampton City Council","http://opendatacommunities.org/id/metropolitan-district-council/wolverhampton","706697","Radis Community Care","19081820180828","112.53","TPP - Home Care","190500086","29/08/2018","Older People Care Purchasing","OP Care Purchasing (Spot Placements)","R5420"
"Wolverhampton City Council","http://opendatacommunities.org/id/metropolitan-district-council/wolverhampton","706697","Radis Community Care","19081820180828","101.64","TPP - Home Care","190500086","29/08/2018","Older People Care Purchasing","OP Care Purchasing (Spot Placements)","R5420"
"Wolverhampton City Council","http://opendatacommunities.org/id/metropolitan-district-council/wolverhampton","706697","Radis Community Care","19081820180828","152.46","TPP - Home Care","190500086","29/08/2018","Older People Care Purchasing","OP Care Purchasing (Spot Placements)","R5420"
"Wolverhampton City Council","http://opendatacommunities.org/id/metropolitan-district-council/wolverhampton","706697","Radis Community Care","19081820180828","101.64","TPP - Home Care","190500086","29/08/2018","Older People Care Purchasing","OP Care Purchasing (Spot Placements)","R5420"
"Wolverhampton City Council","http://opendatacommunities.org/id/metropolitan-district-council/wolverhampton","706697","Radis Community Care","19081820180828","181.50","TPP - Home Care","190500086","29/08/2018","Older People Care Purchasing","OP Care Purchasing (Spot Placements)","R5420"
"Wolverhampton City Council","http://opendatacommunities.org/id/metropolitan-district-council/wolverhampton","706697","Radis Community Care","19081820180828","47.19","TPP - Home Care","190500086","29/08/2018","Older People Care Purchasing","OP Care Purchasing (Spot Placements)","R5420"
"Wolverhampton City Council","http://opendatacommunities.org/id/metropolitan-district-council/wolverhampton","706697","Radis Community Care","19081820180828","228.69","TPP - Home Care","190500086","29/08/2018","Older People Care Purchasing","OP Care Purchasing (Spot Placements)","R5420"
"Wolverhampton City Council","http://opendatacommunities.org/id/metropolitan-district-council/wolverhampton","706697","Radis Community Care","19081820180828","127.05","TPP - Home Care","190500086","29/08/2018","Older People Care Purchasing","OP Care Purchasing (Spot Placements)","R5420"
"Wolverhampton City Council","http://opendatacommunities.org/id/metropolitan-district-council/wolverhampton","706697","Radis Community Care","19081820180828","50.82","TPP - Home Care","190500086","29/08/2018","Older People Care Purchasing","OP Care Purchasing (Spot Placements)","R5420"
"Wolverhampton City Council","http://opendatacommunities.org/id/metropolitan-district-council/wolverhampton","706697","Radis Community Care","19081820180828","166.98","TPP - Home Care","190500086","29/08/2018","Older People Care Purchasing","OP Care Purchasing (Spot Placements)","R5420"
"Wolverhampton City Council","http://opendatacommunities.org/id/metropolitan-district-council/wolverhampton","706697","Radis Community Care","19081820180828","87.12","TPP - Home Care","190500086","29/08/2018","Older People Care Purchasing","OP Care Purchasing (Spot Placements)","R5420"
"Wolverhampton City Council","http://opendatacommunities.org/id/metropolitan-district-council/wolverhampton","706697","Radis Community Care","19081820180828","7.26","TPP - Home Care","190500086","29/08/2018","Older People Care Purchasing","OP Care Purchasing (Spot Placements)","R5420"
"Wolverhampton City Council","http://opendatacommunities.org/id/metropolitan-district-council/wolverhampton","706697","Radis Community Care","19081820180828","235.95","TPP - Home Care","190500086","29/08/2018","Older People Care Purchasing","OP Care Purchasing (Spot Placements)","R5420"
"Wolverhampton City Council","http://opendatacommunities.org/id/metropolitan-district-council/wolverhampton","706697","Radis Community Care","19081820180828","228.69","TPP - Home Care","190500086","29/08/2018","Older People Care Purchasing","OP Care Purchasing (Spot Placements)","R5420"
"Wolverhampton City Council","http://opendatacommunities.org/id/metropolitan-district-council/wolverhampton","706697","Radis Community Care","19081820180828","98.01","TPP - Home Care","190500086","29/08/2018","Older People Care Purchasing","OP Care Purchasing (Spot Placements)","R5420"
"Wolverhampton City Council","http://opendatacommunities.org/id/metropolitan-district-council/wolverhampton","706697","Radis Community Care","19081820180828","65.34","TPP - Home Care","190500086","29/08/2018","Older People Care Purchasing","OP Care Purchasing (Spot Placements)","R5420"
"Wolverhampton City Council","http://opendatacommunities.org/id/metropolitan-district-council/wolverhampton","706697","Radis Community Care","19081820180828","145.20","TPP - Home Care","190500086","29/08/2018","Older People Care Purchasing","OP Care Purchasing (Spot Placements)","R5420"
"Wolverhampton City Council","http://opendatacommunities.org/id/metropolitan-district-council/wolverhampton","706697","Radis Community Care","19081820180828","43.56","TPP - Home Care","190500086","29/08/2018","Physical Disabilities Care Purchasing","PD Care Purchasing (Spot Placements)","R5420"
"Wolverhampton City Council","http://opendatacommunities.org/id/metropolitan-district-council/wolverhampton","706697","Radis Community Care","2907201820180802","203.28","TPP - Home Care","190493173","03/08/2018","Older People Care Purchasing","OP Care Purchasing (Spot Placements)","R5420"
"Wolverhampton City Council","http://opendatacommunities.org/id/metropolitan-district-council/wolverhampton","706697","Radis Community Care","2907201820180802","203.28","TPP - Home Care","190493173","03/08/2018","Older People Care Purchasing","OP Care Purchasing (Spot Placements)","R5420"
"Wolverhampton City Council","http://opendatacommunities.org/id/metropolitan-district-council/wolverhampton","706697","Radis Community Care","2907201820180802","72.60","TPP - Home Care","190493173","03/08/2018","Physical Disabilities Care Purchasing","PD Care Purchasing (Spot Placements)","R5420"
"Wolverhampton City Council","http://opendatacommunities.org/id/metropolitan-district-council/wolverhampton","706697","Radis Community Care","2907201820180802","54.45","TPP - Home Care","190493173","03/08/2018","Older People Care Purchasing","OP Care Purchasing (Spot Placements)","R5420"
"Wolverhampton City Council","http://opendatacommunities.org/id/metropolitan-district-council/wolverhampton","706697","Radis Community Care","2907201820180802","50.82","TPP - Home Care","190493173","03/08/2018","Physical Disabilities Care Purchasing","PD Care Purchasing (Spot Placements)","R5420"
"Wolverhampton City Council","http://opendatacommunities.org/id/metropolitan-district-council/wolverhampton","706697","Radis Community Care","2907201820180802","50.82","TPP - Home Care","190493173","03/08/2018","Physical Disabilities Care Purchasing","PD Care Purchasing (Spot Placements)","R5420"
"Wolverhampton City Council","http://opendatacommunities.org/id/metropolitan-district-council/wolverhampton","706697","Radis Community Care","2907201820180802","21.78","TPP - Home Care","190493173","03/08/2018","Physical Disabilities Care Purchasing","PD Care Purchasing (Spot Placements)","R5420"
"Wolverhampton City Council","http://opendatacommunities.org/id/metropolitan-district-council/wolverhampton","706697","Radis Community Care","2907201820180802","98.01","TPP - Home Care","190493173","03/08/2018","Older People Care Purchasing","OP Care Purchasing (Spot Placements)","R5420"
"Wolverhampton City Council","http://opendatacommunities.org/id/metropolitan-district-council/wolverhampton","706697","Radis Community Care","2907201820180802","188.76","TPP - Home Care","190493173","03/08/2018","Physical Disabilities Care Purchasing","PD Care Purchasing (Spot Placements)","R5420"
"Wolverhampton City Council","http://opendatacommunities.org/id/metropolitan-district-council/wolverhampton","706697","Radis Community Care","2907201820180802","199.65","TPP - Home Care","190493173","03/08/2018","Physical Disabilities Care Purchasing","PD Care Purchasing (Spot Placements)","R5420"
"Wolverhampton City Council","http://opendatacommunities.org/id/metropolitan-district-council/wolverhampton","706697","Radis Community Care","2907201820180802","225.06","TPP - Home Care","190493173","03/08/2018","Older People Care Purchasing","OP Care Purchasing (Spot Placements)","R5420"
"Wolverhampton City Council","http://opendatacommunities.org/id/metropolitan-district-council/wolverhampton","706697","Radis Community Care","2907201820180802","36.30","TPP - Home Care","190493173","03/08/2018","Older People Care Purchasing","OP Care Purchasing (Spot Placements)","R5420"
"Wolverhampton City Council","http://opendatacommunities.org/id/metropolitan-district-council/wolverhampton","706697","Radis Community Care","2907201820180802","76.23","TPP - Home Care","190493173","03/08/2018","Physical Disabilities Care Purchasing","PD Care Purchasing (Spot Placements)","R5420"
"Wolverhampton City Council","http://opendatacommunities.org/id/metropolitan-district-council/wolverhampton","706697","Radis Community Care","2907201820180802","76.23","TPP - Home Care","190493173","03/08/2018","Physical Disabilities Care Purchasing","PD Care Purchasing (Spot Placements)","R5420"
"Wolverhampton City Council","http://opendatacommunities.org/id/metropolitan-district-council/wolverhampton","706697","Radis Community Care","2907201820180802","39.93","TPP - Home Care","190493173","03/08/2018","Physical Disabilities Care Purchasing","PD Care Purchasing (Spot Placements)","R5420"
"Wolverhampton City Council","http://opendatacommunities.org/id/metropolitan-district-council/wolverhampton","706697","Radis Community Care","2907201820180802","221.43","TPP - Home Care","190493173","03/08/2018","Older People Care Purchasing","OP Care Purchasing (Spot Placements)","R5420"
"Wolverhampton City Council","http://opendatacommunities.org/id/metropolitan-district-council/wolverhampton","706697","Radis Community Care","2907201820180802","232.32","TPP - Home Care","190493173","03/08/2018","Older People Care Purchasing","OP Care Purchasing (Spot Placements)","R5420"
"Wolverhampton City Council","http://opendatacommunities.org/id/metropolitan-district-council/wolverhampton","706697","Radis Community Care","2907201820180802","228.69","TPP - Home Care","190493173","03/08/2018","Older People Care Purchasing","OP Care Purchasing (Spot Placements)","R5420"
"Wolverhampton City Council","http://opendatacommunities.org/id/metropolitan-district-council/wolverhampton","706697","Radis Community Care","2907201820180802","152.46","TPP - Home Care","190493173","03/08/2018","Older People Care Purchasing","OP Care Purchasing (Spot Placements)","R5420"
"Wolverhampton City Council","http://opendatacommunities.org/id/metropolitan-district-council/wolverhampton","706697","Radis Community Care","2907201820180802","475.53","TPP - Home Care","190493173","03/08/2018","Physical Disabilities Care Purchasing","PD Care Purchasing (Spot Placements)","R5420"
"Wolverhampton City Council","http://opendatacommunities.org/id/metropolitan-district-council/wolverhampton","706697","Radis Community Care","2907201820180802","471.90","TPP - Home Care","190493173","03/08/2018","Physical Disabilities Care Purchasing","PD Care Purchasing (Spot Placements)","R5420"
"Wolverhampton City Council","http://opendatacommunities.org/id/metropolitan-district-council/wolverhampton","706697","Radis Community Care","2907201820180802","76.23","TPP - Home Care","190493173","03/08/2018","Learning Disabilities Care Purchasing","LD Care Purchasing (Spot Placements)","R5420"
"Wolverhampton City Council","http://opendatacommunities.org/id/metropolitan-district-council/wolverhampton","706697","Radis Community Care","2907201820180802","228.69","TPP - Home Care","190493173","03/08/2018","Older People Care Purchasing","OP Care Purchasing (Spot Placements)","R5420"
"Wolverhampton City Council","http://opendatacommunities.org/id/metropolitan-district-council/wolverhampton","706697","Radis Community Care","2907201820180802","58.08","TPP - Home Care","190493173","03/08/2018","Older People Care Purchasing","OP Care Purchasing (Spot Placements)","R5420"
"Wolverhampton City Council","http://opendatacommunities.org/id/metropolitan-district-council/wolverhampton","706697","Radis Community Care","2907201820180802","14.52","TPP - Home Care","190493173","03/08/2018","Older People Care Purchasing","OP Care Purchasing (Spot Placements)","R5420"
"Wolverhampton City Council","http://opendatacommunities.org/id/metropolitan-district-council/wolverhampton","706697","Radis Community Care","2907201820180802","7.26","TPP - Home Care","190493173","03/08/2018","Older People Care Purchasing","OP Care Purchasing (Spot Placements)","R5420"
"Wolverhampton City Council","http://opendatacommunities.org/id/metropolitan-district-council/wolverhampton","706697","Radis Community Care","2907201820180802","29.04","TPP - Home Care","190493173","03/08/2018","Older People Care Purchasing","OP Care Purchasing (Spot Placements)","R5420"
"Wolverhampton City Council","http://opendatacommunities.org/id/metropolitan-district-council/wolverhampton","706697","Radis Community Care","2907201820180802","39.93","TPP - Home Care","190493173","03/08/2018","Older People Care Purchasing","OP Care Purchasing (Spot Placements)","R5420"
"Wolverhampton City Council","http://opendatacommunities.org/id/metropolitan-district-council/wolverhampton","706697","Radis Community Care","2907201820180802","101.64","TPP - Home Care","190493173","03/08/2018","Older People Care Purchasing","OP Care Purchasing (Spot Placements)","R5420"
"Wolverhampton City Council","http://opendatacommunities.org/id/metropolitan-district-council/wolverhampton","706697","Radis Community Care","2907201820180802","254.10","TPP - Home Care","190493173","03/08/2018","Physical Disabilities Care Purchasing","PD Care Purchasing (Spot Placements)","R5420"
"Wolverhampton City Council","http://opendatacommunities.org/id/metropolitan-district-council/wolverhampton","706697","Radis Community Care","2907201820180802","312.18","TPP - Home Care","190493173","03/08/2018","Physical Disabilities Care Purchasing","PD Care Purchasing (Spot Placements)","R5420"
"Wolverhampton City Council","http://opendatacommunities.org/id/metropolitan-district-council/wolverhampton","706697","Radis Community Care","2907201820180802","101.64","TPP - Home Care","190493173","03/08/2018","Older People Care Purchasing","OP Care Purchasing (Spot Placements)","R5420"
"Wolverhampton City Council","http://opendatacommunities.org/id/metropolitan-district-council/wolverhampton","706697","Radis Community Care","2907201820180802","50.82","TPP - Home Care","190493173","03/08/2018","Older People Care Purchasing","OP Care Purchasing (Spot Placements)","R5420"
"Wolverhampton City Council","http://opendatacommunities.org/id/metropolitan-district-council/wolverhampton","706697","Radis Community Care","2907201820180802","127.05","TPP - Home Care","190493173","03/08/2018","Older People Care Purchasing","OP Care Purchasing (Spot Placements)","R5420"
"Wolverhampton City Council","http://opendatacommunities.org/id/metropolitan-district-council/wolverhampton","706697","Radis Community Care","2907201820180802","127.05","TPP - Home Care","190493173","03/08/2018","Older People Care Purchasing","OP Care Purchasing (Spot Placements)","R5420"
"Wolverhampton City Council","http://opendatacommunities.org/id/metropolitan-district-council/wolverhampton","706697","Radis Community Care","2907201820180802","239.58","TPP - Home Care","190493173","03/08/2018","Physical Disabilities Care Purchasing","PD Care Purchasing (Spot Placements)","R5420"
"Wolverhampton City Council","http://opendatacommunities.org/id/metropolitan-district-council/wolverhampton","706697","Radis Community Care","2907201820180802","206.91","TPP - Home Care","190493173","03/08/2018","Older People Care Purchasing","OP Care Purchasing (Spot Placements)","R5420"
"Wolverhampton City Council","http://opendatacommunities.org/id/metropolitan-district-council/wolverhampton","706697","Radis Community Care","2907201820180802","98.01","TPP - Home Care","190493173","03/08/2018","Older People Care Purchasing","OP Care Purchasing (Spot Placements)","R5420"
"Wolverhampton City Council","http://opendatacommunities.org/id/metropolitan-district-council/wolverhampton","706697","Radis Community Care","2907201820180802","199.65","TPP - Home Care","190493173","03/08/2018","Older People Care Purchasing","OP Care Purchasing (Spot Placements)","R5420"
"Wolverhampton City Council","http://opendatacommunities.org/id/metropolitan-district-council/wolverhampton","706697","Radis Community Care","2907201820180802","192.39","TPP - Home Care","190493173","03/08/2018","Older People Care Purchasing","OP Care Purchasing (Spot Placements)","R5420"
"Wolverhampton City Council","http://opendatacommunities.org/id/metropolitan-district-council/wolverhampton","706697","Radis Community Care","2907201820180802","159.72","TPP - Home Care","190493173","03/08/2018","Physical Disabilities Care Purchasing","PD Care Purchasing (Spot Placements)","R5420"
"Wolverhampton City Council","http://opendatacommunities.org/id/metropolitan-district-council/wolverhampton","706697","Radis Community Care","2907201820180802","145.20","TPP - Home Care","190493173","03/08/2018","Physical Disabilities Care Purchasing","PD Care Purchasing (Spot Placements)","R5420"
"Wolverhampton City Council","http://opendatacommunities.org/id/metropolitan-district-council/wolverhampton","706697","Radis Community Care","2907201820180802","101.64","TPP - Home Care","190493173","03/08/2018","Older People Care Purchasing","OP Care Purchasing (Spot Placements)","R5420"
"Wolverhampton City Council","http://opendatacommunities.org/id/metropolitan-district-council/wolverhampton","706697","Radis Community Care","2907201820180802","50.82","TPP - Home Care","190493173","03/08/2018","Older People Care Purchasing","OP Care Purchasing (Spot Placements)","R5420"
"Wolverhampton City Council","http://opendatacommunities.org/id/metropolitan-district-council/wolverhampton","706697","Radis Community Care","2907201820180802","50.82","TPP - Home Care","190493173","03/08/2018","Older People Care Purchasing","OP Care Purchasing (Spot Placements)","R5420"
"Wolverhampton City Council","http://opendatacommunities.org/id/metropolitan-district-council/wolverhampton","706697","Radis Community Care","2907201820180802","101.64","TPP - Home Care","190493173","03/08/2018","Older People Care Purchasing","OP Care Purchasing (Spot Placements)","R5420"
"Wolverhampton City Council","http://opendatacommunities.org/id/metropolitan-district-council/wolverhampton","706697","Radis Community Care","2907201820180802","21.78","TPP - Home Care","190493173","03/08/2018","Physical Disabilities Care Purchasing","PD Care Purchasing (Spot Placements)","R5420"
"Wolverhampton City Council","http://opendatacommunities.org/id/metropolitan-district-council/wolverhampton","706697","Radis Community Care","2907201820180802","188.76","TPP - Home Care","190493173","03/08/2018","Physical Disabilities Care Purchasing","PD Care Purchasing (Spot Placements)","R5420"
"Wolverhampton City Council","http://opendatacommunities.org/id/metropolitan-district-council/wolverhampton","706697","Radis Community Care","2907201820180802","39.93","TPP - Home Care","190493173","03/08/2018","Older People Care Purchasing","OP Care Purchasing (Spot Placements)","R5420"
"Wolverhampton City Council","http://opendatacommunities.org/id/metropolitan-district-council/wolverhampton","706697","Radis Community Care","2907201820180802","101.64","TPP - Home Care","190493173","03/08/2018","Older People Care Purchasing","OP Care Purchasing (Spot Placements)","R5420"
"Wolverhampton City Council","http://opendatacommunities.org/id/metropolitan-district-council/wolverhampton","706697","Radis Community Care","2907201820180802","50.82","TPP - Home Care","190493173","03/08/2018","Older People Care Purchasing","OP Care Purchasing (Spot Placements)","R5420"
"Wolverhampton City Council","http://opendatacommunities.org/id/metropolitan-district-council/wolverhampton","706697","Radis Community Care","2907201820180802","156.09","TPP - Home Care","190493173","03/08/2018","Older People Care Purchasing","OP Care Purchasing (Spot Placements)","R5420"
"Wolverhampton City Council","http://opendatacommunities.org/id/metropolitan-district-council/wolverhampton","706697","Radis Community Care","2907201820180802","152.46","TPP - Home Care","190493173","03/08/2018","Older People Care Purchasing","OP Care Purchasing (Spot Placements)","R5420"
"Wolverhampton City Council","http://opendatacommunities.org/id/metropolitan-district-council/wolverhampton","706697","Radis Community Care","2907201820180802","148.83","TPP - Home Care","190493173","03/08/2018","Older People Care Purchasing","OP Care Purchasing (Spot Placements)","R5420"
"Wolverhampton City Council","http://opendatacommunities.org/id/metropolitan-district-council/wolverhampton","706697","Radis Community Care","2907201820180802","196.02","TPP - Home Care","190493173","03/08/2018","Older People Care Purchasing","OP Care Purchasing (Spot Placements)","R5420"
"Wolverhampton City Council","http://opendatacommunities.org/id/metropolitan-district-council/wolverhampton","706697","Radis Community Care","2907201820180802","68.97","TPP - Home Care","190493173","03/08/2018","Physical Disabilities Care Purchasing","PD Care Purchasing (Spot Placements)","R5420"
"Wolverhampton City Council","http://opendatacommunities.org/id/metropolitan-district-council/wolverhampton","706697","Radis Community Care","2907201820180802","72.60","TPP - Home Care","190493173","03/08/2018","Older People Care Purchasing","OP Care Purchasing (Spot Placements)","R5420"
"Wolverhampton City Council","http://opendatacommunities.org/id/metropolitan-district-council/wolverhampton","706697","Radis Community Care","2907201820180802","101.64","TPP - Home Care","190493173","03/08/2018","Older People Care Purchasing","OP Care Purchasing (Spot Placements)","R5420"
"Wolverhampton City Council","http://opendatacommunities.org/id/metropolitan-district-council/wolverhampton","706697","Radis Community Care","2907201820180802","50.82","TPP - Home Care","190493173","03/08/2018","Older People Care Purchasing","OP Care Purchasing (Spot Placements)","R5420"
"Wolverhampton City Council","http://opendatacommunities.org/id/metropolitan-district-council/wolverhampton","706697","Radis Community Care","2907201820180802","188.76","TPP - Home Care","190493173","03/08/2018","Physical Disabilities Care Purchasing","PD Care Purchasing (Spot Placements)","R5420"
"Wolverhampton City Council","http://opendatacommunities.org/id/metropolitan-district-council/wolverhampton","706697","Radis Community Care","2907201820180802","152.46","TPP - Home Care","190493173","03/08/2018","Physical Disabilities Care Purchasing","PD Care Purchasing (Spot Placements)","R5420"
"Wolverhampton City Council","http://opendatacommunities.org/id/metropolitan-district-council/wolverhampton","706697","Radis Community Care","2907201820180802","50.82","TPP - Home Care","190493173","03/08/2018","Older People Care Purchasing","OP Care Purchasing (Spot Placements)","R5420"
"Wolverhampton City Council","http://opendatacommunities.org/id/metropolitan-district-council/wolverhampton","706697","Radis Community Care","2907201820180802","177.87","TPP - Home Care","190493173","03/08/2018","Older People Care Purchasing","OP Care Purchasing (Spot Placements)","R5420"
"Wolverhampton City Council","http://opendatacommunities.org/id/metropolitan-district-council/wolverhampton","706697","Radis Community Care","2907201820180802","101.64","TPP - Home Care","190493173","03/08/2018","Older People Care Purchasing","OP Care Purchasing (Spot Placements)","R5420"
"Wolverhampton City Council","http://opendatacommunities.org/id/metropolitan-district-council/wolverhampton","706697","Radis Community Care","2907201820180802","94.38","TPP - Home Care","190493173","03/08/2018","Older People Care Purchasing","OP Care Purchasing (Spot Placements)","R5420"
"Wolverhampton City Council","http://opendatacommunities.org/id/metropolitan-district-council/wolverhampton","706697","Radis Community Care","2907201820180802","76.23","TPP - Home Care","190493173","03/08/2018","Older People Care Purchasing","OP Care Purchasing (Spot Placements)","R5420"
"Wolverhampton City Council","http://opendatacommunities.org/id/metropolitan-district-council/wolverhampton","706697","Radis Community Care","2907201820180802","199.65","TPP - Home Care","190493173","03/08/2018","Older People Care Purchasing","OP Care Purchasing (Spot Placements)","R5420"
"Wolverhampton City Council","http://opendatacommunities.org/id/metropolitan-district-council/wolverhampton","706697","Radis Community Care","2907201820180802","127.05","TPP - Home Care","190493173","03/08/2018","Older People Care Purchasing","OP Care Purchasing (Spot Placements)","R5420"
"Wolverhampton City Council","http://opendatacommunities.org/id/metropolitan-district-council/wolverhampton","706697","Radis Community Care","2907201820180802","58.08","TPP - Home Care","190493173","03/08/2018","Older People Care Purchasing","OP Care Purchasing (Spot Placements)","R5420"
"Wolverhampton City Council","http://opendatacommunities.org/id/metropolitan-district-council/wolverhampton","706697","Radis Community Care","2907201820180802","50.82","TPP - Home Care","190493173","03/08/2018","Older People Care Purchasing","OP Care Purchasing (Spot Placements)","R5420"
"Wolverhampton City Council","http://opendatacommunities.org/id/metropolitan-district-council/wolverhampton","706697","Radis Community Care","2907201820180802","50.82","TPP - Home Care","190493173","03/08/2018","Older People Care Purchasing","OP Care Purchasing (Spot Placements)","R5420"
"Wolverhampton City Council","http://opendatacommunities.org/id/metropolitan-district-council/wolverhampton","706697","Radis Community Care","2907201820180802","50.82","TPP - Home Care","190493173","03/08/2018","Older People Care Purchasing","OP Care Purchasing (Spot Placements)","R5420"
"Wolverhampton City Council","http://opendatacommunities.org/id/metropolitan-district-council/wolverhampton","706697","Radis Community Care","2907201820180802","50.82","TPP - Home Care","190493173","03/08/2018","Older People Care Purchasing","OP Care Purchasing (Spot Placements)","R5420"
"Wolverhampton City Council","http://opendatacommunities.org/id/metropolitan-district-council/wolverhampton","706697","Radis Community Care","2907201820180802","228.69","TPP - Home Care","190493173","03/08/2018","Older People Care Purchasing","OP Care Purchasing (Spot Placements)","R5420"
"Wolverhampton City Council","http://opendatacommunities.org/id/metropolitan-district-council/wolverhampton","706697","Radis Community Care","2907201820180802","250.47","TPP - Home Care","190493173","03/08/2018","Older People Care Purchasing","OP Care Purchasing (Spot Placements)","R5420"
"Wolverhampton City Council","http://opendatacommunities.org/id/metropolitan-district-council/wolverhampton","706697","Radis Community Care","2907201820180802","94.38","TPP - Home Care","190493173","03/08/2018","Older People Care Purchasing","OP Care Purchasing (Spot Placements)","R5420"
"Wolverhampton City Council","http://opendatacommunities.org/id/metropolitan-district-council/wolverhampton","706697","Radis Community Care","2907201820180802","119.79","TPP - Home Care","190493173","03/08/2018","Older People Care Purchasing","OP Care Purchasing (Spot Placements)","R5420"
"Wolverhampton City Council","http://opendatacommunities.org/id/metropolitan-district-council/wolverhampton","706697","Radis Community Care","2907201820180802","101.64","TPP - Home Care","190493173","03/08/2018","Older People Care Purchasing","OP Care Purchasing (Spot Placements)","R5420"
"Wolverhampton City Council","http://opendatacommunities.org/id/metropolitan-district-council/wolverhampton","706697","Radis Community Care","2907201820180802","170.61","TPP - Home Care","190493173","03/08/2018","Older People Care Purchasing","OP Care Purchasing (Spot Placements)","R5420"
"Wolverhampton City Council","http://opendatacommunities.org/id/metropolitan-district-council/wolverhampton","706697","Radis Community Care","2907201820180802","170.61","TPP - Home Care","190493173","03/08/2018","Older People Care Purchasing","OP Care Purchasing (Spot Placements)","R5420"
"Wolverhampton City Council","http://opendatacommunities.org/id/metropolitan-district-council/wolverhampton","706697","Radis Community Care","2907201820180802","101.64","TPP - Home Care","190493173","03/08/2018","Older People Care Purchasing","OP Care Purchasing (Spot Placements)","R5420"
"Wolverhampton City Council","http://opendatacommunities.org/id/metropolitan-district-council/wolverhampton","706697","Radis Community Care","2907201820180802","225.06","TPP - Home Care","190493173","03/08/2018","Older People Care Purchasing","OP Care Purchasing (Spot Placements)","R5420"
"Wolverhampton City Council","http://opendatacommunities.org/id/metropolitan-district-council/wolverhampton","706697","Radis Community Care","2907201820180802","72.60","TPP - Home Care","190493173","03/08/2018","Physical Disabilities Care Purchasing","PD Care Purchasing (Spot Placements)","R5420"
"Wolverhampton City Council","http://opendatacommunities.org/id/metropolitan-district-council/wolverhampton","706697","Radis Community Care","2907201820180802","98.01","TPP - Home Care","190493173","03/08/2018","Older People Care Purchasing","OP Care Purchasing (Spot Placements)","R5420"
"Wolverhampton City Council","http://opendatacommunities.org/id/metropolitan-district-council/wolverhampton","706697","Radis Community Care","2907201820180802","36.30","TPP - Home Care","190493173","03/08/2018","Older People Care Purchasing","OP Care Purchasing (Spot Placements)","R5420"
"Wolverhampton City Council","http://opendatacommunities.org/id/metropolitan-district-council/wolverhampton","706697","Radis Community Care","2907201820180802","101.64","TPP - Home Care","190493173","03/08/2018","Older People Care Purchasing","OP Care Purchasing (Spot Placements)","R5420"
"Wolverhampton City Council","http://opendatacommunities.org/id/metropolitan-district-council/wolverhampton","706697","Radis Community Care","2907201820180802","101.64","TPP - Home Care","190493173","03/08/2018","Older People Care Purchasing","OP Care Purchasing (Spot Placements)","R5420"
"Wolverhampton City Council","http://opendatacommunities.org/id/metropolitan-district-council/wolverhampton","706697","Radis Community Care","2907201820180802","101.64","TPP - Home Care","190493173","03/08/2018","Older People Care Purchasing","OP Care Purchasing (Spot Placements)","R5420"
"Wolverhampton City Council","http://opendatacommunities.org/id/metropolitan-district-council/wolverhampton","706697","Radis Community Care","2907201820180802","94.38","TPP - Home Care","190493173","03/08/2018","Older People Care Purchasing","OP Care Purchasing (Spot Placements)","R5420"
"Wolverhampton City Council","http://opendatacommunities.org/id/metropolitan-district-council/wolverhampton","706697","Radis Community Care","2907201820180802","69.00","TPP - Carer Support Service","190493173","03/08/2018","Carer Support","CS Care Purchasing (Spot Placements)","R5421"
"Wolverhampton City Council","http://opendatacommunities.org/id/metropolitan-district-council/wolverhampton","706697","Radis Community Care","2907201820180802","196.02","TPP - Home Care","190493173","03/08/2018","Older People Care Purchasing","OP Care Purchasing (Spot Placements)","R5420"
"Wolverhampton City Council","http://opendatacommunities.org/id/metropolitan-district-council/wolverhampton","706697","Radis Community Care","2907201820180802","181.50","TPP - Home Care","190493173","03/08/2018","Older People Care Purchasing","OP Care Purchasing (Spot Placements)","R5420"
"Wolverhampton City Council","http://opendatacommunities.org/id/metropolitan-district-council/wolverhampton","706697","Radis Community Care","2907201820180802","196.02","TPP - Home Care","190493173","03/08/2018","Older People Care Purchasing","OP Care Purchasing (Spot Placements)","R5420"
"Wolverhampton City Council","http://opendatacommunities.org/id/metropolitan-district-council/wolverhampton","706697","Radis Community Care","2907201820180802","127.05","TPP - Home Care","190493173","03/08/2018","Older People Care Purchasing","OP Care Purchasing (Spot Placements)","R5420"
"Wolverhampton City Council","http://opendatacommunities.org/id/metropolitan-district-council/wolverhampton","706697","Radis Community Care","2907201820180802","43.56","TPP - Home Care","190493173","03/08/2018","Older People Care Purchasing","OP Care Purchasing (Spot Placements)","R5420"
"Wolverhampton City Council","http://opendatacommunities.org/id/metropolitan-district-council/wolverhampton","706697","Radis Community Care","2907201820180802","50.82","TPP - Home Care","190493173","03/08/2018","Older People Care Purchasing","OP Care Purchasing (Spot Placements)","R5420"
"Wolverhampton City Council","http://opendatacommunities.org/id/metropolitan-district-council/wolverhampton","706697","Radis Community Care","2907201820180802","217.80","TPP - Home Care","190493173","03/08/2018","Older People Care Purchasing","OP Care Purchasing (Spot Placements)","R5420"
"Wolverhampton City Council","http://opendatacommunities.org/id/metropolitan-district-council/wolverhampton","706697","Radis Community Care","2907201820180802","76.23","TPP - Home Care","190493173","03/08/2018","Older People Care Purchasing","OP Care Purchasing (Spot Placements)","R5420"
"Wolverhampton City Council","http://opendatacommunities.org/id/metropolitan-district-council/wolverhampton","706697","Radis Community Care","2907201820180802","41.40","TPP - Carer Support Service","190493173","03/08/2018","Carer Support","CS Care Purchasing (Spot Placements)","R5421"
"Wolverhampton City Council","http://opendatacommunities.org/id/metropolitan-district-council/wolverhampton","706697","Radis Community Care","2907201820180802","203.28","TPP - Home Care","190493173","03/08/2018","Older People Care Purchasing","OP Care Purchasing (Spot Placements)","R5420"
"Wolverhampton City Council","http://opendatacommunities.org/id/metropolitan-district-council/wolverhampton","706697","Radis Community Care","2907201820180802","44.85","TPP - Carer Support Service","190493173","03/08/2018","Carer Support","CS Care Purchasing (Spot Placements)","R5421"
"Wolverhampton City Council","http://opendatacommunities.org/id/metropolitan-district-council/wolverhampton","706697","Radis Community Care","2907201820180802","79.86","TPP - Home Care","190493173","03/08/2018","Older People Care Purchasing","OP Care Purchasing (Spot Placements)","R5420"
"Wolverhampton City Council","http://opendatacommunities.org/id/metropolitan-district-council/wolverhampton","706697","Radis Community Care","2907201820180802","145.20","TPP - Home Care","190493173","03/08/2018","Older People Care Purchasing","OP Care Purchasing (Spot Placements)","R5420"
"Wolverhampton City Council","http://opendatacommunities.org/id/metropolitan-district-council/wolverhampton","706697","Radis Community Care","2907201820180802","50.82","TPP - Home Care","190493173","03/08/2018","Older People Care Purchasing","OP Care Purchasing (Spot Placements)","R5420"
"Wolverhampton City Council","http://opendatacommunities.org/id/metropolitan-district-council/wolverhampton","706697","Radis Community Care","2907201820180802","7.26","TPP - Home Care","190493173","03/08/2018","Older People Care Purchasing","OP Care Purchasing (Spot Placements)","R5420"
"Wolverhampton City Council","http://opendatacommunities.org/id/metropolitan-district-council/wolverhampton","706697","Radis Community Care","2907201820180802","225.06","TPP - Home Care","190493173","03/08/2018","Older People Care Purchasing","OP Care Purchasing (Spot Placements)","R5420"
"Wolverhampton City Council","http://opendatacommunities.org/id/metropolitan-district-council/wolverhampton","706697","Radis Community Care","2907201820180802","225.06","TPP - Home Care","190493173","03/08/2018","Older People Care Purchasing","OP Care Purchasing (Spot Placements)","R5420"
"Wolverhampton City Council","http://opendatacommunities.org/id/metropolitan-district-council/wolverhampton","706697","Radis Community Care","2907201820180802","235.95","TPP - Home Care","190493173","03/08/2018","Older People Care Purchasing","OP Care Purchasing (Spot Placements)","R5420"
"Wolverhampton City Council","http://opendatacommunities.org/id/metropolitan-district-council/wolverhampton","706697","Radis Community Care","2907201820180802","145.20","TPP - Home Care","190493173","03/08/2018","Older People Care Purchasing","OP Care Purchasing (Spot Placements)","R5420"
"Wolverhampton City Council","http://opendatacommunities.org/id/metropolitan-district-council/wolverhampton","706697","Radis Community Care","2907201820180802","47.19","TPP - Home Care","190493173","03/08/2018","Older People Care Purchasing","OP Care Purchasing (Spot Placements)","R5420"
"Wolverhampton City Council","http://opendatacommunities.org/id/metropolitan-district-council/wolverhampton","706697","Radis Community Care","2907201820180802","181.50","TPP - Home Care","190493173","03/08/2018","Older People Care Purchasing","OP Care Purchasing (Spot Placements)","R5420"
"Wolverhampton City Council","http://opendatacommunities.org/id/metropolitan-district-council/wolverhampton","706697","Radis Community Care","2907201820180802","134.31","TPP - Home Care","190493173","03/08/2018","Older People Care Purchasing","OP Care Purchasing (Spot Placements)","R5420"
"Wolverhampton City Council","http://opendatacommunities.org/id/metropolitan-district-council/wolverhampton","706697","Radis Community Care","2907201820180802","119.79","TPP - Home Care","190493173","03/08/2018","Older People Care Purchasing","OP Care Purchasing (Spot Placements)","R5420"
"Wolverhampton City Council","http://opendatacommunities.org/id/metropolitan-district-council/wolverhampton","706697","Radis Community Care","2907201820180802","65.34","TPP - Home Care","190493173","03/08/2018","Older People Care Purchasing","OP Care Purchasing (Spot Placements)","R5420"
"Wolverhampton City Council","http://opendatacommunities.org/id/metropolitan-district-council/wolverhampton","706697","Radis Community Care","2907201820180802","65.34","TPP - Home Care","190493173","03/08/2018","Older People Care Purchasing","OP Care Purchasing (Spot Placements)","R5420"
"Wolverhampton City Council","http://opendatacommunities.org/id/metropolitan-district-council/wolverhampton","706697","Radis Community Care","2907201820180802","199.65","TPP - Home Care","190493173","03/08/2018","Older People Care Purchasing","OP Care Purchasing (Spot Placements)","R5420"
"Wolverhampton City Council","http://opendatacommunities.org/id/metropolitan-district-council/wolverhampton","706697","Radis Community Care","2907201820180802","196.02","TPP - Home Care","190493173","03/08/2018","Older People Care Purchasing","OP Care Purchasing (Spot Placements)","R5420"
"Wolverhampton City Council","http://opendatacommunities.org/id/metropolitan-district-council/wolverhampton","706697","Radis Community Care","2907201820180802","246.84","TPP - Home Care","190493173","03/08/2018","Older People Care Purchasing","OP Care Purchasing (Spot Placements)","R5420"
"Wolverhampton City Council","http://opendatacommunities.org/id/metropolitan-district-council/wolverhampton","706697","Radis Community Care","2907201820180802","203.28","TPP - Home Care","190493173","03/08/2018","Older People Care Purchasing","OP Care Purchasing (Spot Placements)","R5420"
"Wolverhampton City Council","http://opendatacommunities.org/id/metropolitan-district-council/wolverhampton","706697","Radis Community Care","2907201820180802","203.28","TPP - Home Care","190493173","03/08/2018","Older People Care Purchasing","OP Care Purchasing (Spot Placements)","R5420"
"Wolverhampton City Council","http://opendatacommunities.org/id/metropolitan-district-council/wolverhampton","706697","Radis Community Care","2907201820180802","101.64","TPP - Home Care","190493173","03/08/2018","Older People Care Purchasing","OP Care Purchasing (Spot Placements)","R5420"
"Wolverhampton City Council","http://opendatacommunities.org/id/metropolitan-district-council/wolverhampton","706697","Radis Community Care","2907201820180802","148.83","TPP - Home Care","190493173","03/08/2018","Older People Care Purchasing","OP Care Purchasing (Spot Placements)","R5420"
"Wolverhampton City Council","http://opendatacommunities.org/id/metropolitan-district-council/wolverhampton","706697","Radis Community Care","2907201820180802","94.38","TPP - Home Care","190493173","03/08/2018","Older People Care Purchasing","OP Care Purchasing (Spot Placements)","R5420"
"Wolverhampton City Council","http://opendatacommunities.org/id/metropolitan-district-council/wolverhampton","706697","Radis Community Care","2907201820180802","388.41","TPP - Home Care","190493173","03/08/2018","Older People Care Purchasing","OP Care Purchasing (Spot Placements)","R5420"
"Wolverhampton City Council","http://opendatacommunities.org/id/metropolitan-district-council/wolverhampton","706697","Radis Community Care","2907201820180802","203.28","TPP - Home Care","190493173","03/08/2018","Physical Disabilities Care Purchasing","PD Care Purchasing (Spot Placements)","R5420"
"Wolverhampton City Council","http://opendatacommunities.org/id/metropolitan-district-council/wolverhampton","706697","Radis Community Care","2907201820180802","203.28","TPP - Home Care","190493173","03/08/2018","Physical Disabilities Care Purchasing","PD Care Purchasing (Spot Placements)","R5420"
"Wolverhampton City Council","http://opendatacommunities.org/id/metropolitan-district-council/wolverhampton","706697","Radis Community Care","2907201820180802","254.10","TPP - Home Care","190493173","03/08/2018","Older People Care Purchasing","OP Care Purchasing (Spot Placements)","R5420"
"Wolverhampton City Council","http://opendatacommunities.org/id/metropolitan-district-council/wolverhampton","706697","Radis Community Care","2907201820180802","199.65","TPP - Home Care","190493173","03/08/2018","Older People Care Purchasing","OP Care Purchasing (Spot Placements)","R5420"
"Wolverhampton City Council","http://opendatacommunities.org/id/metropolitan-district-council/wolverhampton","706697","Radis Community Care","2907201820180802","199.65","TPP - Home Care","190493173","03/08/2018","Older People Care Purchasing","OP Care Purchasing (Spot Placements)","R5420"
"Wolverhampton City Council","http://opendatacommunities.org/id/metropolitan-district-council/wolverhampton","706697","Radis Community Care","2907201820180802","36.30","TPP - Home Care","190493173","03/08/2018","Older People Care Purchasing","OP Care Purchasing (Spot Placements)","R5420"
"Wolverhampton City Council","http://opendatacommunities.org/id/metropolitan-district-council/wolverhampton","706697","Radis Community Care","2907201820180802","101.64","TPP - Home Care","190493173","03/08/2018","Physical Disabilities Care Purchasing","PD Care Purchasing (Spot Placements)","R5420"
"Wolverhampton City Council","http://opendatacommunities.org/id/metropolitan-district-council/wolverhampton","706697","Radis Community Care","2907201820180802","101.64","TPP - Home Care","190493173","03/08/2018","Physical Disabilities Care Purchasing","PD Care Purchasing (Spot Placements)","R5420"
"Wolverhampton City Council","http://opendatacommunities.org/id/metropolitan-district-council/wolverhampton","706697","Radis Community Care","2907201820180802","203.28","TPP - Home Care","190493173","03/08/2018","Older People Care Purchasing","OP Care Purchasing (Spot Placements)","R5420"
"Wolverhampton City Council","http://opendatacommunities.org/id/metropolitan-district-council/wolverhampton","706697","Radis Community Care","2907201820180802","72.60","TPP - Home Care","190493173","03/08/2018","Older People Care Purchasing","OP Care Purchasing (Spot Placements)","R5420"
"Wolverhampton City Council","http://opendatacommunities.org/id/metropolitan-district-council/wolverhampton","706697","Radis Community Care","2907201820180802","72.60","TPP - Home Care","190493173","03/08/2018","Older People Care Purchasing","OP Care Purchasing (Spot Placements)","R5420"
"Wolverhampton City Council","http://opendatacommunities.org/id/metropolitan-district-council/wolverhampton","706697","Radis Community Care","2907201820180802","203.28","TPP - Home Care","190493173","03/08/2018","Older People Care Purchasing","OP Care Purchasing (Spot Placements)","R5420"
"Wolverhampton City Council","http://opendatacommunities.org/id/metropolitan-district-council/wolverhampton","706697","Radis Community Care","2907201820180802","112.53","TPP - Home Care","190493173","03/08/2018","Older People Care Purchasing","OP Care Purchasing (Spot Placements)","R5420"
"Wolverhampton City Council","http://opendatacommunities.org/id/metropolitan-district-council/wolverhampton","706697","Radis Community Care","2907201820180802","101.64","TPP - Home Care","190493173","03/08/2018","Older People Care Purchasing","OP Care Purchasing (Spot Placements)","R5420"
"Wolverhampton City Council","http://opendatacommunities.org/id/metropolitan-district-council/wolverhampton","706697","Radis Community Care","2907201820180802","145.20","TPP - Home Care","190493173","03/08/2018","Older People Care Purchasing","OP Care Purchasing (Spot Placements)","R5420"
"Wolverhampton City Council","http://opendatacommunities.org/id/metropolitan-district-council/wolverhampton","706697","Radis Community Care","2907201820180802","101.64","TPP - Home Care","190493173","03/08/2018","Older People Care Purchasing","OP Care Purchasing (Spot Placements)","R5420"
"Wolverhampton City Council","http://opendatacommunities.org/id/metropolitan-district-council/wolverhampton","706697","Radis Community Care","2907201820180802","196.02","TPP - Home Care","190493173","03/08/2018","Older People Care Purchasing","OP Care Purchasing (Spot Placements)","R5420"
"Wolverhampton City Council","http://opendatacommunities.org/id/metropolitan-district-council/wolverhampton","706705","Rainbow Taxis Limited","6181","1,245.00","Client Transport","130225855","15/08/2018","Special Educational Needs","Primary - Transport","R3042"
"Wolverhampton City Council","http://opendatacommunities.org/id/metropolitan-district-council/wolverhampton","706705","Rainbow Taxis Limited","6177","1,088.60","Client Transport","130225851","15/08/2018","Special Educational Needs","Special - Transport","R3042"
"Wolverhampton City Council","http://opendatacommunities.org/id/metropolitan-district-council/wolverhampton","706705","Rainbow Taxis Limited","6184","1,165.50","Client Transport","130225858","15/08/2018","Special Educational Needs","Special - Transport","R3042"
"Wolverhampton City Council","http://opendatacommunities.org/id/metropolitan-district-council/wolverhampton","706705","Rainbow Taxis Limited","6164","854.10","Client Transport","130225839","15/08/2018","Special Educational Needs","Special - Transport","R3042"
"Wolverhampton City Council","http://opendatacommunities.org/id/metropolitan-district-council/wolverhampton","706705","Rainbow Taxis Limited","6171","1,756.00","Client Transport","130225846","15/08/2018","Special Educational Needs","Special - Transport","R3042"
"Wolverhampton City Council","http://opendatacommunities.org/id/metropolitan-district-council/wolverhampton","706705","Rainbow Taxis Limited","6166","1,102.00","Client Transport","130225841","15/08/2018","Special Educational Needs","Special - Transport","R3042"
"Wolverhampton City Council","http://opendatacommunities.org/id/metropolitan-district-council/wolverhampton","706705","Rainbow Taxis Limited","6165","1,041.10","Client Transport","130225840","15/08/2018","Special Educational Needs","Special - Transport","R3042"
"Wolverhampton City Council","http://opendatacommunities.org/id/metropolitan-district-council/wolverhampton","706705","Rainbow Taxis Limited","6180","1,155.00","Client Transport","130225854","15/08/2018","Special Educational Needs","Primary - Transport","R3042"
"Wolverhampton City Council","http://opendatacommunities.org/id/metropolitan-district-council/wolverhampton","706705","Rainbow Taxis Limited","6178","923.70","Client Transport","130225852","15/08/2018","Special Educational Needs","Special - Transport","R3042"
"Wolverhampton City Council","http://opendatacommunities.org/id/metropolitan-district-council/wolverhampton","706705","Rainbow Taxis Limited","6169","1,558.05","Client Transport","130225844","15/08/2018","Special Educational Needs","Special - Transport","R3042"
"Wolverhampton City Council","http://opendatacommunities.org/id/metropolitan-district-council/wolverhampton","706705","Rainbow Taxis Limited","6172","1,275.00","Client Transport","130225847","15/08/2018","Special Educational Needs","Special - Transport","R3042"
"Wolverhampton City Council","http://opendatacommunities.org/id/metropolitan-district-council/wolverhampton","706705","Rainbow Taxis Limited","6175","1,261.50","Client Transport","130225849","15/08/2018","Special Educational Needs","Primary - Transport","R3042"
"Wolverhampton City Council","http://opendatacommunities.org/id/metropolitan-district-council/wolverhampton","706705","Rainbow Taxis Limited","6182","1,166.20","Client Transport","130225856","15/08/2018","Special Educational Needs","Special - Transport","R3042"
"Wolverhampton City Council","http://opendatacommunities.org/id/metropolitan-district-council/wolverhampton","706705","Rainbow Taxis Limited","6176","994.50","Client Transport","130225850","15/08/2018","Special Educational Needs","Special - Transport","R3042"
"Wolverhampton City Council","http://opendatacommunities.org/id/metropolitan-district-council/wolverhampton","706705","Rainbow Taxis Limited","6167","1,134.68","Client Transport","130225842","15/08/2018","Special Educational Needs","Special - Transport","R3042"
"Wolverhampton City Council","http://opendatacommunities.org/id/metropolitan-district-council/wolverhampton","706705","Rainbow Taxis Limited","6163","928.73","Client Transport","130225838","15/08/2018","Special Educational Needs","Special - Transport","R3042"
"Wolverhampton City Council","http://opendatacommunities.org/id/metropolitan-district-council/wolverhampton","706705","Rainbow Taxis Limited","6162","1,116.50","Client Transport","130225837","15/08/2018","Special Educational Needs","Special - Transport","R3042"
"Wolverhampton City Council","http://opendatacommunities.org/id/metropolitan-district-council/wolverhampton","706705","Rainbow Taxis Limited","6174","985.50","Client Transport","130225848","15/08/2018","Special Educational Needs","Special - Transport","R3042"
"Wolverhampton City Council","http://opendatacommunities.org/id/metropolitan-district-council/wolverhampton","706705","Rainbow Taxis Limited","6170","1,677.78","Client Transport","130225845","15/08/2018","Special Educational Needs","Special - Transport","R3042"
"Wolverhampton City Council","http://opendatacommunities.org/id/metropolitan-district-council/wolverhampton","706705","Rainbow Taxis Limited","6183","128.00","Client Transport","130225857","15/08/2018","Special Educational Needs","Student Awards","R3042"
"Wolverhampton City Council","http://opendatacommunities.org/id/metropolitan-district-council/wolverhampton","706705","Rainbow Taxis Limited","6179","1,245.00","Client Transport","130225853","15/08/2018","Special Educational Needs","Primary - Transport","R3042"
"Wolverhampton City Council","http://opendatacommunities.org/id/metropolitan-district-council/wolverhampton","706705","Rainbow Taxis Limited","6168","1,235.00","Client Transport","130225843","15/08/2018","Special Educational Needs","Special - Transport","R3042"
"Wolverhampton City Council","http://opendatacommunities.org/id/metropolitan-district-council/wolverhampton","706718","Raring2Go","R2G01187","499.00","Marketing \ Non-staff advertising","130222465","15/08/2018","Leisure Services","WV Active Marketing","R4317"
"Wolverhampton City Council","http://opendatacommunities.org/id/metropolitan-district-council/wolverhampton","706730","Rayton Electrical Wholesale Limited","759689","143.25","Equipment - R & M","130223743","01/08/2018","Visitor Economy","Bantock House Museum","R4003"
"Wolverhampton City Council","http://opendatacommunities.org/id/metropolitan-district-council/wolverhampton","706753","Red Forge Limited","0000104570","98.00","Services - Professional Fees","190496249","17/08/2018","Fleet Services","Fleet Management","R4400"
"Wolverhampton City Council","http://opendatacommunities.org/id/metropolitan-district-council/wolverhampton","706778","Reedsrains","TWU001T721072018","600.00","Rent","130222535","08/08/2018","Child Protection","CIN/CP Social Work Unit - Area 3","R2200"
"Wolverhampton City Council","http://opendatacommunities.org/id/metropolitan-district-council/wolverhampton","706779","Re-Entry Project","7910","912.00","TPP - Alternative Provision of Education","130224304","01/08/2018","Specialist Support","Alternative Provision","R5037"
"Wolverhampton City Council","http://opendatacommunities.org/id/metropolitan-district-council/wolverhampton","706779","Re-Entry Project","7904","144.00","TPP - Alternative Provision of Education","130224302","01/08/2018","Specialist Support","Alternative Provision","R5037"
"Wolverhampton City Council","http://opendatacommunities.org/id/metropolitan-district-council/wolverhampton","706779","Re-Entry Project","7907","1,584.00","TPP - Alternative Provision of Education","130224303","01/08/2018","Specialist Support","Alternative Provision","R5037"
"Wolverhampton City Council","http://opendatacommunities.org/id/metropolitan-district-council/wolverhampton","706779","Re-Entry Project","7801","1,728.00","TPP - Alternative Provision of Education","130224971","10/08/2018","Special Educational Needs","SEN Education OOC","R5037"
"Wolverhampton City Council","http://opendatacommunities.org/id/metropolitan-district-council/wolverhampton","706779","Re-Entry Project","7801 7817 7819","5,040.00","TPP - Alternative Provision of Education","130222031","01/08/2018","Special Educational Needs","SEN Education OOC","R5037"
"Wolverhampton City Council","http://opendatacommunities.org/id/metropolitan-district-council/wolverhampton","706779","Re-Entry Project","7912","1,584.00","TPP - Alternative Provision of Education","130224305","01/08/2018","Specialist Support","Alternative Provision","R5037"
"Wolverhampton City Council","http://opendatacommunities.org/id/metropolitan-district-council/wolverhampton","706805","Respond Group Limited Dba Aptean","RI6018-701453","932.52","Computing - Repair and Maint","130224306","03/08/2018","Customer Services","City Direct","R4533"
"Wolverhampton City Council","http://opendatacommunities.org/id/metropolitan-district-council/wolverhampton","706809","Restorative Justice Council","S670496","250.00","Subscriptions","130222354","08/08/2018","Youth Offending","Youth Offending Team","R4701"
"Wolverhampton City Council","http://opendatacommunities.org/id/metropolitan-district-council/wolverhampton","706856","Rigby Taylor Limited","RSIN0266728","930.00","Materials","130222355","08/08/2018","Environmental Maintenance","Ground Maintenance East","R4007"
"Wolverhampton City Council","http://opendatacommunities.org/id/metropolitan-district-council/wolverhampton","706856","Rigby Taylor Limited","RSIN0269179","530.00","Materials","130224782","29/08/2018","Environmental Maintenance","Ground Maintenance East","R4007"
"Wolverhampton City Council","http://opendatacommunities.org/id/metropolitan-district-council/wolverhampton","706856","Rigby Taylor Limited","RSIN0269179","2,992.50","Materials","130224782","29/08/2018","Environmental Maintenance","Ground Maintenance East","R4007"
"Wolverhampton City Council","http://opendatacommunities.org/id/metropolitan-district-council/wolverhampton","706856","Rigby Taylor Limited","RSIN0269178","525.00","Equipment - Purchase","130224781","29/08/2018","Leisure Services","Aldersley Leisure Village","R4000"
"Wolverhampton City Council","http://opendatacommunities.org/id/metropolitan-district-council/wolverhampton","706856","Rigby Taylor Limited","RSIN0269178","75.00","Equipment - Purchase","130224781","29/08/2018","Leisure Services","Aldersley Leisure Village","R4000"
"Wolverhampton City Council","http://opendatacommunities.org/id/metropolitan-district-council/wolverhampton","706856","Rigby Taylor Limited","RSIN0269178","19.80","Equipment - Purchase","130224781","29/08/2018","Leisure Services","Aldersley Leisure Village","R4000"
"Wolverhampton City Council","http://opendatacommunities.org/id/metropolitan-district-council/wolverhampton","706861","Eurovia Contracting","5814","293,901.16","Construction and Conversion","130222356","01/08/2018","-","GF - Accessing Growth Fund","C1100"
"Wolverhampton City Council","http://opendatacommunities.org/id/metropolitan-district-council/wolverhampton","706866","Rlss UK Enterprises Limited","SI481216 - 1","153.00","Materials for resale","130182098","22/08/2018","Leisure Services","Bert Williams Leisure Centre","R4008"
"Wolverhampton City Council","http://opendatacommunities.org/id/metropolitan-district-council/wolverhampton","706868","Rmc Mechanical Services Limited","A23298","55.55","R&M - Departmental planned (external)","130226011","22/08/2018","Facilities Management","Caretakers Community Centre","R2001"
"Wolverhampton City Council","http://opendatacommunities.org/id/metropolitan-district-council/wolverhampton","706868","Rmc Mechanical Services Limited","A23181","40,000.00","Construction and Conversion","130223755","01/08/2018","-","Capital Maintenance - Heating Pipework Upgrades","C1100"
"Wolverhampton City Council","http://opendatacommunities.org/id/metropolitan-district-council/wolverhampton","706868","Rmc Mechanical Services Limited","A23178","2,359.50","R&M - Departmental planned (external)","130223752","01/08/2018","Maintenance Programme","Centralised R&M","R2001"
"Wolverhampton City Council","http://opendatacommunities.org/id/metropolitan-district-council/wolverhampton","706868","Rmc Mechanical Services Limited","A23167","360.16","R&M - Departmental planned (external)","130223197","01/08/2018","Maintenance Programme","Civic Centre Repairs & Maintenance","R2001"
"Wolverhampton City Council","http://opendatacommunities.org/id/metropolitan-district-council/wolverhampton","706868","Rmc Mechanical Services Limited","A23187","138.50","R&M - Departmental planned (external)","130224013","01/08/2018","Maintenance Programme","Centralised R&M","R2001"
"Wolverhampton City Council","http://opendatacommunities.org/id/metropolitan-district-council/wolverhampton","706868","Rmc Mechanical Services Limited","A23183","330.00","R&M - Departmental planned (external)","130223888","01/08/2018","Maintenance Programme","Centralised R&M","R2001"
"Wolverhampton City Council","http://opendatacommunities.org/id/metropolitan-district-council/wolverhampton","706868","Rmc Mechanical Services Limited","A23203","12,967.00","R&M - Departmental planned (external)","130224310","08/08/2018","Facilities Management","Culwell Street Depot","R2001"
"Wolverhampton City Council","http://opendatacommunities.org/id/metropolitan-district-council/wolverhampton","706868","Rmc Mechanical Services Limited","A23211","50,000.00","Construction and Conversion","130224449","08/08/2018","-","Capital Maintenance - Heating Pipework Upgrades","C1100"
"Wolverhampton City Council","http://opendatacommunities.org/id/metropolitan-district-council/wolverhampton","706868","Rmc Mechanical Services Limited","A23199","851.92","R&M - Departmental planned (external)","130224149","08/08/2018","Maintenance Programme","Centralised R&M","R2001"
"Wolverhampton City Council","http://opendatacommunities.org/id/metropolitan-district-council/wolverhampton","706868","Rmc Mechanical Services Limited","A23281","2,156.25","R&M - Departmental planned (external)","130225723","31/08/2018","Corporate Asset Management","Centralised Planned Maintenance","R2001"
"Wolverhampton City Council","http://opendatacommunities.org/id/metropolitan-district-council/wolverhampton","706868","Rmc Mechanical Services Limited","A23299","116.18","R&M - Departmental planned (external)","130225865","24/08/2018","Facilities Management","Caretakers Community Centre","R2001"
"Wolverhampton City Council","http://opendatacommunities.org/id/metropolitan-district-council/wolverhampton","706868","Rmc Mechanical Services Limited","A21728AB","123.62","R&M - Departmental planned (external)","130216002","31/08/2018","Maintenance Programme","Centralised R&M","R2001"
"Wolverhampton City Council","http://opendatacommunities.org/id/metropolitan-district-council/wolverhampton","706868","Rmc Mechanical Services Limited","A23194","537.96","R&M - Departmental planned (external)","130224020","03/08/2018","Maintenance Programme","Centralised R&M","R2001"
"Wolverhampton City Council","http://opendatacommunities.org/id/metropolitan-district-council/wolverhampton","706868","Rmc Mechanical Services Limited","A23176","2,032.00","R&M - Departmental planned (external)","130223750","01/08/2018","Maintenance Programme","Centralised R&M","R2001"
"Wolverhampton City Council","http://opendatacommunities.org/id/metropolitan-district-council/wolverhampton","706868","Rmc Mechanical Services Limited","A23182","40,814.64","Construction and Conversion","130223756","01/08/2018","-","Capital Maintenance - Heating Pipework Upgrades","C1100"
"Wolverhampton City Council","http://opendatacommunities.org/id/metropolitan-district-council/wolverhampton","706868","Rmc Mechanical Services Limited","A23189","166.30","R&M - Departmental planned (external)","130224015","01/08/2018","Maintenance Programme","Centralised R&M","R2001"
"Wolverhampton City Council","http://opendatacommunities.org/id/metropolitan-district-council/wolverhampton","706868","Rmc Mechanical Services Limited","A23192","335.63","R&M - Departmental planned (external)","130224018","01/08/2018","Maintenance Programme","Centralised R&M","R2001"
"Wolverhampton City Council","http://opendatacommunities.org/id/metropolitan-district-council/wolverhampton","706868","Rmc Mechanical Services Limited","A23190","385.87","R&M - Departmental planned (external)","130224016","01/08/2018","Maintenance Programme","Centralised R&M","R2001"
"Wolverhampton City Council","http://opendatacommunities.org/id/metropolitan-district-council/wolverhampton","706868","Rmc Mechanical Services Limited","A23302","55.55","R&M - Departmental planned (external)","130225868","22/08/2018","Facilities Management","Caretakers Community Centre","R2001"
"Wolverhampton City Council","http://opendatacommunities.org/id/metropolitan-district-council/wolverhampton","706868","Rmc Mechanical Services Limited","A23195","212.44","R&M - Departmental planned (external)","130224021","03/08/2018","Maintenance Programme","Centralised R&M","R2001"
"Wolverhampton City Council","http://opendatacommunities.org/id/metropolitan-district-council/wolverhampton","706868","Rmc Mechanical Services Limited","A23198","0.02","R&M - Departmental planned (external)","130224148","03/08/2018","Maintenance Programme","Centralised R&M","R2001"
"Wolverhampton City Council","http://opendatacommunities.org/id/metropolitan-district-council/wolverhampton","706868","Rmc Mechanical Services Limited","A23198","638.82","R&M - Departmental planned (external)","130224148","03/08/2018","Maintenance Programme","Centralised R&M","R2001"
"Wolverhampton City Council","http://opendatacommunities.org/id/metropolitan-district-council/wolverhampton","706868","Rmc Mechanical Services Limited","A23112","1,054.50","R&M - Departmental planned (external)","130224972","10/08/2018","Maintenance Programme","Centralised R&M","R2001"
"Wolverhampton City Council","http://opendatacommunities.org/id/metropolitan-district-council/wolverhampton","706868","Rmc Mechanical Services Limited","A23200","900.59","R&M - Departmental planned (external)","130224150","08/08/2018","Maintenance Programme","Centralised R&M","R2001"
"Wolverhampton City Council","http://opendatacommunities.org/id/metropolitan-district-council/wolverhampton","706868","Rmc Mechanical Services Limited","A23201","158.28","R&M - Departmental planned (external)","130224308","08/08/2018","Maintenance Programme","Centralised R&M","R2001"
"Wolverhampton City Council","http://opendatacommunities.org/id/metropolitan-district-council/wolverhampton","706868","Rmc Mechanical Services Limited","A23213","10,000.00","Construction and Conversion","130224603","08/08/2018","-","Capital Maintenance - Heating Pipework Upgrades","C1100"
"Wolverhampton City Council","http://opendatacommunities.org/id/metropolitan-district-council/wolverhampton","706868","Rmc Mechanical Services Limited","A23295","124.73","R&M - Departmental planned (external)","130225862","24/08/2018","Facilities Management","Caretakers Community Centre","R2001"
"Wolverhampton City Council","http://opendatacommunities.org/id/metropolitan-district-council/wolverhampton","706868","Rmc Mechanical Services Limited","A23303","1,225.00","R&M - Departmental planned (external)","130225932","31/08/2018","Maintenance Programme","Centralised R&M","R2001"
"Wolverhampton City Council","http://opendatacommunities.org/id/metropolitan-district-council/wolverhampton","706868","Rmc Mechanical Services Limited","A23232","23,652.00","Construction and Conversion","130224976","31/08/2018","-","Capital Maintenance - Heating Pipework Upgrades","C1100"
"Wolverhampton City Council","http://opendatacommunities.org/id/metropolitan-district-council/wolverhampton","706868","Rmc Mechanical Services Limited","A23177","3,495.00","R&M - Departmental planned (external)","130223751","01/08/2018","Maintenance Programme","Centralised R&M","R2001"
"Wolverhampton City Council","http://opendatacommunities.org/id/metropolitan-district-council/wolverhampton","706868","Rmc Mechanical Services Limited","A23180","508.53","R&M - Departmental planned (external)","130223754","01/08/2018","Facilities Management","Magistrates","R2001"
"Wolverhampton City Council","http://opendatacommunities.org/id/metropolitan-district-council/wolverhampton","706868","Rmc Mechanical Services Limited","A23186","276.99","R&M - Departmental planned (external)","130224012","01/08/2018","Maintenance Programme","Centralised R&M","R2001"
"Wolverhampton City Council","http://opendatacommunities.org/id/metropolitan-district-council/wolverhampton","706868","Rmc Mechanical Services Limited","A23191","115.34","R&M - Departmental planned (external)","130224017","01/08/2018","Maintenance Programme","Centralised R&M","R2001"
"Wolverhampton City Council","http://opendatacommunities.org/id/metropolitan-district-council/wolverhampton","706868","Rmc Mechanical Services Limited","A23301","65.34","R&M - Departmental planned (external)","130225867","22/08/2018","Facilities Management","Caretakers Community Centre","R2001"
"Wolverhampton City Council","http://opendatacommunities.org/id/metropolitan-district-council/wolverhampton","706868","Rmc Mechanical Services Limited","A23115","1,054.50","R&M - Departmental planned (external)","130224974","29/08/2018","Maintenance Programme","Centralised R&M","R2001"
"Wolverhampton City Council","http://opendatacommunities.org/id/metropolitan-district-council/wolverhampton","706868","Rmc Mechanical Services Limited","A23202","22,696.00","R&M - Departmental planned (external)","130224309","08/08/2018","Maintenance Programme","Centralised R&M","R2001"
"Wolverhampton City Council","http://opendatacommunities.org/id/metropolitan-district-council/wolverhampton","706868","Rmc Mechanical Services Limited","A23296","164.84","R&M - Departmental planned (external)","130225863","24/08/2018","Facilities Management","Caretakers Community Centre","R2001"
"Wolverhampton City Council","http://opendatacommunities.org/id/metropolitan-district-council/wolverhampton","706868","Rmc Mechanical Services Limited","A23280","1,437.50","R&M - Departmental planned (external)","130225722","31/08/2018","Corporate Asset Management","Centralised Planned Maintenance","R2001"
"Wolverhampton City Council","http://opendatacommunities.org/id/metropolitan-district-council/wolverhampton","706868","Rmc Mechanical Services Limited","20477","6,534.60","R&M - Departmental planned (external)","130224307","08/08/2018","Maintenance Programme","Centralised R&M","R2001"
"Wolverhampton City Council","http://opendatacommunities.org/id/metropolitan-district-council/wolverhampton","706868","Rmc Mechanical Services Limited","A23193","2,242.50","R&M - Departmental planned (external)","130224019","03/08/2018","Maintenance Programme","Centralised R&M","R2001"
"Wolverhampton City Council","http://opendatacommunities.org/id/metropolitan-district-council/wolverhampton","706868","Rmc Mechanical Services Limited","A23197","108.49","R&M - Departmental planned (external)","130224147","03/08/2018","Maintenance Programme","Centralised R&M","R2001"
"Wolverhampton City Council","http://opendatacommunities.org/id/metropolitan-district-council/wolverhampton","706868","Rmc Mechanical Services Limited","A23212","25,000.00","Construction and Conversion","130224450","08/08/2018","-","Capital Maintenance - Heating Pipework Upgrades","C1100"
"Wolverhampton City Council","http://opendatacommunities.org/id/metropolitan-district-council/wolverhampton","706868","Rmc Mechanical Services Limited","A23214","20,000.00","Construction and Conversion","130224451","08/08/2018","-","Capital Maintenance - Heating Pipework Upgrades","C1100"
"Wolverhampton City Council","http://opendatacommunities.org/id/metropolitan-district-council/wolverhampton","706868","Rmc Mechanical Services Limited","20478","6,869.85","R&M - Departmental planned (external)","130224448","08/08/2018","Maintenance Programme","Centralised R&M","R2001"
"Wolverhampton City Council","http://opendatacommunities.org/id/metropolitan-district-council/wolverhampton","706868","Rmc Mechanical Services Limited","A23297","379.88","R&M - Departmental planned (external)","130225864","24/08/2018","Facilities Management","Caretakers Community Centre","R2001"
"Wolverhampton City Council","http://opendatacommunities.org/id/metropolitan-district-council/wolverhampton","706868","Rmc Mechanical Services Limited","A23294","79.14","R&M - Departmental planned (external)","130225861","31/08/2018","Maintenance Programme","Centralised R&M","R2001"
"Wolverhampton City Council","http://opendatacommunities.org/id/metropolitan-district-council/wolverhampton","706868","Rmc Mechanical Services Limited","A22469A","690.40","R&M - Departmental planned (external)","130227057","31/08/2018","Facilities Management","Magistrates","R2001"
"Wolverhampton City Council","http://opendatacommunities.org/id/metropolitan-district-council/wolverhampton","706868","Rmc Mechanical Services Limited","A23196","249.56","R&M - Departmental planned (external)","130224022","03/08/2018","Maintenance Programme","Centralised R&M","R2001"
"Wolverhampton City Council","http://opendatacommunities.org/id/metropolitan-district-council/wolverhampton","706868","Rmc Mechanical Services Limited","A23179","937.50","R&M - Departmental planned (external)","130223753","01/08/2018","Maintenance Programme","Civic Centre Repairs & Maintenance","R2001"
"Wolverhampton City Council","http://opendatacommunities.org/id/metropolitan-district-council/wolverhampton","706868","Rmc Mechanical Services Limited","A23185","59.36","R&M - Departmental planned (external)","130223890","01/08/2018","Maintenance Programme","Centralised R&M","R2001"
"Wolverhampton City Council","http://opendatacommunities.org/id/metropolitan-district-council/wolverhampton","706868","Rmc Mechanical Services Limited","A23184","79.14","R&M - Departmental planned (external)","130223889","01/08/2018","Maintenance Programme","Centralised R&M","R2001"
"Wolverhampton City Council","http://opendatacommunities.org/id/metropolitan-district-council/wolverhampton","706868","Rmc Mechanical Services Limited","A23188","39.57","R&M - Departmental planned (external)","130224014","01/08/2018","Maintenance Programme","Centralised R&M","R2001"
"Wolverhampton City Council","http://opendatacommunities.org/id/metropolitan-district-council/wolverhampton","706868","Rmc Mechanical Services Limited","A23170","1,593.00","R&M - Departmental planned (external)","130223199","01/08/2018","Maintenance Programme","Centralised R&M","R2001"
"Wolverhampton City Council","http://opendatacommunities.org/id/metropolitan-district-council/wolverhampton","706868","Rmc Mechanical Services Limited","A23300","160.37","R&M - Departmental planned (external)","130225866","22/08/2018","Facilities Management","Caretakers Community Centre","R2001"
"Wolverhampton City Council","http://opendatacommunities.org/id/metropolitan-district-council/wolverhampton","706868","Rmc Mechanical Services Limited","A23114","1,054.50","R&M - Departmental planned (external)","130224973","29/08/2018","Maintenance Programme","Centralised R&M","R2001"
"Wolverhampton City Council","http://opendatacommunities.org/id/metropolitan-district-council/wolverhampton","706870","Rnib","SIN165861","3,481.52","Equipment - Purchase","130225870","17/08/2018","Independent Living Service","Independent Living Service","R4000"
"Wolverhampton City Council","http://opendatacommunities.org/id/metropolitan-district-council/wolverhampton","706870","Rnib","SIN175479","166.25","Equipment - Purchase","130225871","17/08/2018","Independent Living Service","Independent Living Service","R4000"
"Wolverhampton City Council","http://opendatacommunities.org/id/metropolitan-district-council/wolverhampton","706935","Royal Mail","9056919519","113.28","Comms - Postage","130225974","22/08/2018","Business Support","People�s Business Support","R4503"
"Wolverhampton City Council","http://opendatacommunities.org/id/metropolitan-district-council/wolverhampton","706935","Royal Mail","9056584013","407.93","Comms - Postage","130225411","10/08/2018","Strategic Director Place","Business Manager - Place","R4503"
"Wolverhampton City Council","http://opendatacommunities.org/id/metropolitan-district-council/wolverhampton","706935","Royal Mail","9056805308","54.00","Comms - Postage","130225973","22/08/2018","Business Support","People�s Business Support","R4503"
"Wolverhampton City Council","http://opendatacommunities.org/id/metropolitan-district-council/wolverhampton","706935","Royal Mail","9056792830","299.14","Comms - Postage","130225410","10/08/2018","Strategic Director Place","Business Manager - Place","R4503"
"Wolverhampton City Council","http://opendatacommunities.org/id/metropolitan-district-council/wolverhampton","706935","Royal Mail","9056500814","204.96","Comms - Postage","130217976","17/08/2018","Business Support","People�s Business Support","R4503"
"Wolverhampton City Council","http://opendatacommunities.org/id/metropolitan-district-council/wolverhampton","706935","Royal Mail","9056805310","54.00","Comms - Postage","130225409","10/08/2018","Strategic Director Place","Business Manager - Place","R4503"
"Wolverhampton City Council","http://opendatacommunities.org/id/metropolitan-district-council/wolverhampton","706935","Royal Mail","9056703692","129.64","Comms - Postage","130225972","17/08/2018","Business Support","People�s Business Support","R4503"
"Wolverhampton City Council","http://opendatacommunities.org/id/metropolitan-district-council/wolverhampton","706936","Royal Mail Group PLC","9057134633","8.66","Comms - Postage","190498567","24/08/2018","Public Service Reform","Electoral Registration","R4503"
"Wolverhampton City Council","http://opendatacommunities.org/id/metropolitan-district-council/wolverhampton","706936","Royal Mail Group PLC","9056707997","72.49","Comms - Postage","190496160","17/08/2018","Public Service Reform","Local Government Elections","R4503"
"Wolverhampton City Council","http://opendatacommunities.org/id/metropolitan-district-council/wolverhampton","706936","Royal Mail Group PLC","9057017209","1,043.38","Comms - Postage","130223891","22/08/2018","ICTS","Document Centre - General","R4503"
"Wolverhampton City Council","http://opendatacommunities.org/id/metropolitan-district-council/wolverhampton","706936","Royal Mail Group PLC","9056426792","1,574.44","Comms - Postage","130213986","01/08/2018","ICTS","Document Centre - General","R4503"
"Wolverhampton City Council","http://opendatacommunities.org/id/metropolitan-district-council/wolverhampton","706936","Royal Mail Group PLC","9057131330","4,050.90","Comms - Postage","190498564","24/08/2018","Public Service Reform","Electoral Registration","R4503"
"Wolverhampton City Council","http://opendatacommunities.org/id/metropolitan-district-council/wolverhampton","706936","Royal Mail Group PLC","9053902825","260.00","Comms - Postage","130224311","08/08/2018","Revenues & Benefits","Revenues","R4503"
"Wolverhampton City Council","http://opendatacommunities.org/id/metropolitan-district-council/wolverhampton","706936","Royal Mail Group PLC","9057086284","5,996.90","Comms - Postage","190494589","10/08/2018","Public Service Reform","Electoral Registration","R4503"
"Wolverhampton City Council","http://opendatacommunities.org/id/metropolitan-district-council/wolverhampton","706936","Royal Mail Group PLC","9056973298","1,951.71","Comms - Postage","130223441","15/08/2018","ICTS","Document Centre - General","R4503"
"Wolverhampton City Council","http://opendatacommunities.org/id/metropolitan-district-council/wolverhampton","706936","Royal Mail Group PLC","9057180184","0.96","Comms - Postage","190498566","24/08/2018","Public Service Reform","Electoral Registration","R4503"
"Wolverhampton City Council","http://opendatacommunities.org/id/metropolitan-district-council/wolverhampton","706936","Royal Mail Group PLC","905671719","2,047.78","Comms - Postage","190496158","17/08/2018","Public Service Reform","Local Government Elections","R4503"
"Wolverhampton City Council","http://opendatacommunities.org/id/metropolitan-district-council/wolverhampton","706936","Royal Mail Group PLC","9057171875","1,806.35","Comms - Postage","190498565","24/08/2018","Public Service Reform","Electoral Registration","R4503"
"Wolverhampton City Council","http://opendatacommunities.org/id/metropolitan-district-council/wolverhampton","706936","Royal Mail Group PLC","9056094753","265.00","Comms - Postage","130224312","08/08/2018","Revenues & Benefits","Revenues","R4503"
"Wolverhampton City Council","http://opendatacommunities.org/id/metropolitan-district-council/wolverhampton","706936","Royal Mail Group PLC","9056698481","88.05","Comms - Postage","190496159","17/08/2018","Public Service Reform","Local Government Elections","R4503"
"Wolverhampton City Council","http://opendatacommunities.org/id/metropolitan-district-council/wolverhampton","706936","Royal Mail Group PLC","9056879474","1,098.93","Comms - Postage","130222193","01/08/2018","ICTS","Document Centre - General","R4503"
"Wolverhampton City Council","http://opendatacommunities.org/id/metropolitan-district-council/wolverhampton","706942","Royal Society For Public Health-Rsph","EXM1000038005","500.00","Training Expenses","130226013","17/08/2018","Adult Education","Direct Delivery Team ( L.& D.)","R1650"
"Wolverhampton City Council","http://opendatacommunities.org/id/metropolitan-district-council/wolverhampton","706943","Royal Wolverhampton  Hospitals NHS Trust","0000216287","192,956.00","TPP - Public Health Contracts","130212292","01/08/2018","Starting and Developing Well","Sexual Health","R5060"
"Wolverhampton City Council","http://opendatacommunities.org/id/metropolitan-district-council/wolverhampton","706943","Royal Wolverhampton  Hospitals NHS Trust","0000217364","192,956.00","TPP - Public Health Contracts","130215417","01/08/2018","Starting and Developing Well","Sexual Health","R5060"
"Wolverhampton City Council","http://opendatacommunities.org/id/metropolitan-district-council/wolverhampton","706965","Ruskin Mill Trust-Glasshouse College","SIN001764","12,372.24","TPP - Alternative Provision of Education","130224982","22/08/2018","Special Educational Needs","Post 16 SEN Provision","R5037"
"Wolverhampton City Council","http://opendatacommunities.org/id/metropolitan-district-council/wolverhampton","706969","Ruth Turnbull","725","150.00","Services - Professional Fees","130225184","10/08/2018","Visitor Economy","Art Galleries - Schools Art SLA Service","R4400"
"Wolverhampton City Council","http://opendatacommunities.org/id/metropolitan-district-council/wolverhampton","706969","Ruth Turnbull","715","300.00","Services - Professional Fees","130225933","17/08/2018","Visitor Economy","Education And Access","R4400"
"Wolverhampton City Council","http://opendatacommunities.org/id/metropolitan-district-council/wolverhampton","706969","Ruth Turnbull","726","225.00","Services - Professional Fees","130225185","10/08/2018","Visitor Economy","Education And Access","R4400"
"Wolverhampton City Council","http://opendatacommunities.org/id/metropolitan-district-council/wolverhampton","706987","S B Waste Management & Recycling Limited","114825","225.00","Waste Management","130225317","29/08/2018","Leisure Services","Aldersley Leisure Village","R2703"
"Wolverhampton City Council","http://opendatacommunities.org/id/metropolitan-district-council/wolverhampton","706987","S B Waste Management & Recycling Limited","114824","497.30","TPP - Waste Disposal","130225316","29/08/2018","Highways Maintenance","Patching","R5003"
"Wolverhampton City Council","http://opendatacommunities.org/id/metropolitan-district-council/wolverhampton","706987","S B Waste Management & Recycling Limited","114826","803.50","TPP - Waste Disposal","130225318","29/08/2018","Independent Living Service","Independent Living Service","R5003"
"Wolverhampton City Council","http://opendatacommunities.org/id/metropolitan-district-council/wolverhampton","706987","S B Waste Management & Recycling Limited","114823","2,854.94","TPP - Waste Disposal","130225315","29/08/2018","Highways Maintenance","Patching","R5003"
"Wolverhampton City Council","http://opendatacommunities.org/id/metropolitan-district-council/wolverhampton","706987","S B Waste Management & Recycling Limited","114827","47.68","TPP - Waste Disposal","130225319","29/08/2018","Highways Maintenance","Patching","R5003"
"Wolverhampton City Council","http://opendatacommunities.org/id/metropolitan-district-council/wolverhampton","707008","S M  Builders","14/1450/DFG","15,000.00","Grants paid out to other organisations","190498312","22/08/2018","-","Disabled Facilities Grants","C5011"
"Wolverhampton City Council","http://opendatacommunities.org/id/metropolitan-district-council/wolverhampton","707023","S. & J. Pritchard Landscapes Limited","265","85.00","Equipment - Purchase","130225725","22/08/2018","Environmental Maintenance","Management & Administration","R4000"
"Wolverhampton City Council","http://opendatacommunities.org/id/metropolitan-district-council/wolverhampton","707023","S. & J. Pritchard Landscapes Limited","271","65.00","R&M - Departmental response (external)","130226365","29/08/2018","Environmental Maintenance","Parks - East Area Management","R2003"
"Wolverhampton City Council","http://opendatacommunities.org/id/metropolitan-district-council/wolverhampton","707023","S. & J. Pritchard Landscapes Limited","272","235.00","R&M - Departmental response (external)","130226366","29/08/2018","Environmental Maintenance","Parks - East Area Management","R2003"
"Wolverhampton City Council","http://opendatacommunities.org/id/metropolitan-district-council/wolverhampton","707023","S. & J. Pritchard Landscapes Limited","263","270.00","Equipment - Purchase","130225452","15/08/2018","Environmental Maintenance","Management & Administration","R4000"
"Wolverhampton City Council","http://opendatacommunities.org/id/metropolitan-district-council/wolverhampton","707023","S. & J. Pritchard Landscapes Limited","262","395.00","Equipment - Purchase","130225451","15/08/2018","Environmental Maintenance","Management & Administration","R4000"
"Wolverhampton City Council","http://opendatacommunities.org/id/metropolitan-district-council/wolverhampton","707023","S. & J. Pritchard Landscapes Limited","253","2,150.00","Grounds Maintenance - Contract","130224152","08/08/2018","Bereavement Services","Cemeteries","R2075"
"Wolverhampton City Council","http://opendatacommunities.org/id/metropolitan-district-council/wolverhampton","707023","S. & J. Pritchard Landscapes Limited","270","45.00","R&M - Departmental response (external)","130226364","29/08/2018","Environmental Maintenance","Parks - East Area Management","R2003"
"Wolverhampton City Council","http://opendatacommunities.org/id/metropolitan-district-council/wolverhampton","707023","S. & J. Pritchard Landscapes Limited","269","465.00","R&M - Departmental response (external)","130226363","29/08/2018","Environmental Maintenance","Parks - South West Area Management","R2003"
"Wolverhampton City Council","http://opendatacommunities.org/id/metropolitan-district-council/wolverhampton","707023","S. & J. Pritchard Landscapes Limited","268","1,360.00","R&M - Departmental response (external)","130225934","22/08/2018","Environmental Maintenance","Parks - East Area Management","R2003"
"Wolverhampton City Council","http://opendatacommunities.org/id/metropolitan-district-council/wolverhampton","707023","S. & J. Pritchard Landscapes Limited","254","3,200.00","Grounds Maintenance - Contract","130224153","17/08/2018","Bereavement Services","Cemeteries","R2075"
"Wolverhampton City Council","http://opendatacommunities.org/id/metropolitan-district-council/wolverhampton","707023","S. & J. Pritchard Landscapes Limited","255","65.00","R&M - Departmental response (external)","130224154","08/08/2018","Environmental Maintenance","Parks - South West Area Management","R2003"
"Wolverhampton City Council","http://opendatacommunities.org/id/metropolitan-district-council/wolverhampton","707023","S. & J. Pritchard Landscapes Limited","258","265.00","R&M - Departmental response (external)","130225188","15/08/2018","Environmental Maintenance","Parks - East Area Management","R2003"
"Wolverhampton City Council","http://opendatacommunities.org/id/metropolitan-district-council/wolverhampton","707023","S. & J. Pritchard Landscapes Limited","264","475.00","R&M - Departmental planned (external)","130225453","15/08/2018","Environmental Maintenance","Parks - East Area Management","R2001"
"Wolverhampton City Council","http://opendatacommunities.org/id/metropolitan-district-council/wolverhampton","707023","S. & J. Pritchard Landscapes Limited","274","85.00","R&M - Departmental response (external)","130226368","29/08/2018","Environmental Maintenance","Parks - South West Area Management","R2003"
"Wolverhampton City Council","http://opendatacommunities.org/id/metropolitan-district-council/wolverhampton","707023","S. & J. Pritchard Landscapes Limited","276","1,150.00","R&M - Departmental response (external)","130226370","29/08/2018","Environmental Maintenance","Parks - South West Area Management","R2003"
"Wolverhampton City Council","http://opendatacommunities.org/id/metropolitan-district-council/wolverhampton","707023","S. & J. Pritchard Landscapes Limited","267","165.00","R&M - Departmental response (external)","130225727","22/08/2018","Environmental Maintenance","Parks - East Area Management","R2003"
"Wolverhampton City Council","http://opendatacommunities.org/id/metropolitan-district-council/wolverhampton","707023","S. & J. Pritchard Landscapes Limited","259","3,250.00","Grounds Maintenance - Contract","130225189","15/08/2018","Environmental Maintenance","Ground Maintenance East","R2075"
"Wolverhampton City Council","http://opendatacommunities.org/id/metropolitan-district-council/wolverhampton","707023","S. & J. Pritchard Landscapes Limited","260","425.00","R&M - Departmental response (external)","130225449","15/08/2018","Environmental Maintenance","Parks - East Area Management","R2003"
"Wolverhampton City Council","http://opendatacommunities.org/id/metropolitan-district-council/wolverhampton","707023","S. & J. Pritchard Landscapes Limited","275","85.00","R&M - Departmental response (external)","130226369","29/08/2018","Environmental Maintenance","Parks - East Area Management","R2003"
"Wolverhampton City Council","http://opendatacommunities.org/id/metropolitan-district-council/wolverhampton","707023","S. & J. Pritchard Landscapes Limited","273","225.00","R&M - Departmental response (external)","130226367","29/08/2018","Environmental Maintenance","Parks - South West Area Management","R2003"
"Wolverhampton City Council","http://opendatacommunities.org/id/metropolitan-district-council/wolverhampton","707023","S. & J. Pritchard Landscapes Limited","266","425.00","R&M - Departmental response (external)","130225726","22/08/2018","Environmental Maintenance","Parks - South West Area Management","R2003"
"Wolverhampton City Council","http://opendatacommunities.org/id/metropolitan-district-council/wolverhampton","707023","S. & J. Pritchard Landscapes Limited","251","5,200.00","R&M - Departmental planned (external)","130223059","01/08/2018","Facilities Management","Management of Vacant Properties","R2001"
"Wolverhampton City Council","http://opendatacommunities.org/id/metropolitan-district-council/wolverhampton","707023","S. & J. Pritchard Landscapes Limited","252","2,150.00","Grounds Maintenance - Contract","130224151","08/08/2018","Bereavement Services","Cemeteries","R2075"
"Wolverhampton City Council","http://opendatacommunities.org/id/metropolitan-district-council/wolverhampton","707023","S. & J. Pritchard Landscapes Limited","257","225.00","R&M - Departmental response (external)","130225187","15/08/2018","Environmental Maintenance","Parks - South West Area Management","R2003"
"Wolverhampton City Council","http://opendatacommunities.org/id/metropolitan-district-council/wolverhampton","707023","S. & J. Pritchard Landscapes Limited","261","185.00","R&M - Departmental response (external)","130225450","15/08/2018","Environmental Maintenance","Parks - East Area Management","R2003"
"Wolverhampton City Council","http://opendatacommunities.org/id/metropolitan-district-council/wolverhampton","707023","S. & J. Pritchard Landscapes Limited","256","145.00","R&M - Departmental response (external)","130225186","15/08/2018","Environmental Maintenance","Parks - East Area Management","R2003"
"Wolverhampton City Council","http://opendatacommunities.org/id/metropolitan-district-council/wolverhampton","707034","S.S Gill - A. Singh & S.S.Gill","3AC0025","518.80","R&M - Departmental planned (external)","130223592","08/08/2018","Visitor Economy","The Little Civic","R2001"
"Wolverhampton City Council","http://opendatacommunities.org/id/metropolitan-district-council/wolverhampton","707034","S.S Gill - A. Singh & S.S.Gill","3AC022","15,750.00","Rent","130221856","01/08/2018","Visitor Economy","The Little Civic","R2200"
"Wolverhampton City Council","http://opendatacommunities.org/id/metropolitan-district-council/wolverhampton","707035","S.S. Sidhu","0474","179.18","Books","130224783","08/08/2018","Local Economy","Reference Library","R4309"
"Wolverhampton City Council","http://opendatacommunities.org/id/metropolitan-district-council/wolverhampton","707035","S.S. Sidhu","0476","177.85","Books","130223758","15/08/2018","Local Economy","Reference Library","R4309"
"Wolverhampton City Council","http://opendatacommunities.org/id/metropolitan-district-council/wolverhampton","707035","S.S. Sidhu","0477","175.15","Books","130225320","22/08/2018","Local Economy","Reference Library","R4309"
"Wolverhampton City Council","http://opendatacommunities.org/id/metropolitan-district-council/wolverhampton","707035","S.S. Sidhu","0473","166.76","Books","130223060","03/08/2018","Local Economy","Reference Library","R4309"
"Wolverhampton City Council","http://opendatacommunities.org/id/metropolitan-district-council/wolverhampton","707035","S.S. Sidhu","0478","186.28","Books","130225321","29/08/2018","Local Economy","Reference Library","R4309"
"Wolverhampton City Council","http://opendatacommunities.org/id/metropolitan-district-council/wolverhampton","707035","S.S. Sidhu","0475","170.44","Books","130223757","08/08/2018","Local Economy","Reference Library","R4309"
"Wolverhampton City Council","http://opendatacommunities.org/id/metropolitan-district-council/wolverhampton","707043","Sablon Fabrications Limited","3521","1,480.00","R&M - Departmental planned (external)","130224454","03/08/2018","School Planning & Resources","Other Support Services","R2001"
"Wolverhampton City Council","http://opendatacommunities.org/id/metropolitan-district-council/wolverhampton","707085","Sandwell Mbc","210034693","146.00","Construction and Conversion","130224155","01/08/2018","-","Bilston Urban Village","C1100"
"Wolverhampton City Council","http://opendatacommunities.org/id/metropolitan-district-council/wolverhampton","707085","Sandwell Mbc","210035272","780.00","Construction and Conversion","130225935","29/08/2018","-","Bilston Urban Village","C1100"
"Wolverhampton City Council","http://opendatacommunities.org/id/metropolitan-district-council/wolverhampton","707121","Schneider Electric Limited","98161391","1,412.50","R&M - Departmental planned (internal)","130223201","01/08/2018","Maintenance Programme","Civic Centre Repairs & Maintenance","R2000"
"Wolverhampton City Council","http://opendatacommunities.org/id/metropolitan-district-council/wolverhampton","707121","Schneider Electric Limited","98161392","1,412.50","R&M - Departmental planned (internal)","130223202","01/08/2018","Maintenance Programme","Civic Centre Repairs & Maintenance","R2000"
"Wolverhampton City Council","http://opendatacommunities.org/id/metropolitan-district-council/wolverhampton","707143","Schools Health Education Unit Limited","18112","5,000.00","TPP - Public Health Contracts","130222360","08/08/2018","Starting and Developing Well","Healthy Start to Life","R5060"
"Wolverhampton City Council","http://opendatacommunities.org/id/metropolitan-district-council/wolverhampton","707164","Scribes Plus Limited","9938","208.00","Materials","130223892","22/08/2018","Bereavement Services","Crematorium","R4007"
"Wolverhampton City Council","http://opendatacommunities.org/id/metropolitan-district-council/wolverhampton","707176","Secom PLC","1251986","250.00","Fixtures and Fittings - R&M","130225456","15/08/2018","Visitor Economy","Bantock House Museum","R2502"
"Wolverhampton City Council","http://opendatacommunities.org/id/metropolitan-district-council/wolverhampton","707176","Secom PLC","1251985","100.00","Fixtures and Fittings - R&M","130225455","15/08/2018","Visitor Economy","Bantock House Museum","R2502"
"Wolverhampton City Council","http://opendatacommunities.org/id/metropolitan-district-council/wolverhampton","707176","Secom PLC","1249993","225.00","Fixtures and Fittings - R&M","130225454","15/08/2018","Visitor Economy","Bantock House Museum","R2502"
"Wolverhampton City Council","http://opendatacommunities.org/id/metropolitan-district-council/wolverhampton","707185","Security Plus Limited","685350","47.30","Services - Security","130223064","15/08/2018","Leisure Services","Aldersley Leisure Village","R4405"
"Wolverhampton City Council","http://opendatacommunities.org/id/metropolitan-district-council/wolverhampton","707185","Security Plus Limited","689620","110.94","Services - Security","130225457","29/08/2018","The Hub","Cash in Transit (Operational Finance)","R4405"
"Wolverhampton City Council","http://opendatacommunities.org/id/metropolitan-district-council/wolverhampton","707185","Security Plus Limited","683918","208.12","Services - Security","130223061","15/08/2018","Housing Revenue Account","HRA General","R4405"
"Wolverhampton City Council","http://opendatacommunities.org/id/metropolitan-district-council/wolverhampton","707185","Security Plus Limited","689457","9.74","Services - Security","130225603","29/08/2018","Leisure Services","Bert Williams Leisure Centre","R4405"
"Wolverhampton City Council","http://opendatacommunities.org/id/metropolitan-district-council/wolverhampton","707185","Security Plus Limited","690394","3,240.24","Services - Security","130225729","29/08/2018","The Hub","Cash in Transit (Operational Finance)","R4405"
"Wolverhampton City Council","http://opendatacommunities.org/id/metropolitan-district-council/wolverhampton","707185","Security Plus Limited","676687","6,152.00","Services - Security","130218182","03/08/2018","Parking Services","Car Parks Operational Staff","R4405"
"Wolverhampton City Council","http://opendatacommunities.org/id/metropolitan-district-council/wolverhampton","707185","Security Plus Limited","687771","91.84","Services - Security","130224785","15/08/2018","The Hub","Cash in Transit (Operational Finance)","R4405"
"Wolverhampton City Council","http://opendatacommunities.org/id/metropolitan-district-council/wolverhampton","707185","Security Plus Limited","689458","19.48","Services - Security","130225604","29/08/2018","Visitor Economy","Bantock - Tea Rooms","R4405"
"Wolverhampton City Council","http://opendatacommunities.org/id/metropolitan-district-council/wolverhampton","707185","Security Plus Limited","682518","2,599.22","Services - Security","130221184","03/08/2018","Parking Services","On Street Parking","R4405"
"Wolverhampton City Council","http://opendatacommunities.org/id/metropolitan-district-council/wolverhampton","707185","Security Plus Limited","682518","3,606.61","Services - Security","130221184","03/08/2018","Parking Services","Car Parks Operational Staff","R4405"
"Wolverhampton City Council","http://opendatacommunities.org/id/metropolitan-district-council/wolverhampton","707185","Security Plus Limited","689460","107.14","Services - Security","130225606","29/08/2018","Housing Revenue Account","HRA General","R4405"
"Wolverhampton City Council","http://opendatacommunities.org/id/metropolitan-district-council/wolverhampton","707195","Select & Save Wolverhampton Limited","WANEWS052","100.65","Books","130225323","10/08/2018","Local Economy","Warstones Library","R4309"
"Wolverhampton City Council","http://opendatacommunities.org/id/metropolitan-district-council/wolverhampton","707213","Sellick Partnership Group Limited","INV236847","1,650.00","Agency Staff","130223593","15/08/2018","Legal Services","Legal Services","R1100"
"Wolverhampton City Council","http://opendatacommunities.org/id/metropolitan-district-council/wolverhampton","707213","Sellick Partnership Group Limited","INV237960","1,705.00","Agency Staff","130224313","15/08/2018","Legal Services","Legal Services","R1100"
"Wolverhampton City Council","http://opendatacommunities.org/id/metropolitan-district-council/wolverhampton","707213","Sellick Partnership Group Limited","INV239214","1,804.00","Agency Staff","130225730","22/08/2018","Legal Services","Legal Services","R1100"
"Wolverhampton City Council","http://opendatacommunities.org/id/metropolitan-district-council/wolverhampton","707213","Sellick Partnership Group Limited","INV236073","1,716.00","Agency Staff","130222911","15/08/2018","Legal Services","Legal Services","R1100"
"Wolverhampton City Council","http://opendatacommunities.org/id/metropolitan-district-council/wolverhampton","707213","Sellick Partnership Group Limited","INV238637","1,628.00","Agency Staff","130225190","15/08/2018","Legal Services","Legal Services","R1100"
"Wolverhampton City Council","http://opendatacommunities.org/id/metropolitan-district-council/wolverhampton","707228","Senwod Contracting Limited","SI-15609","950.00","Materials","130226372","29/08/2018","Bereavement Services","Bereavement services - Grounds maintenance","R4007"
"Wolverhampton City Council","http://opendatacommunities.org/id/metropolitan-district-council/wolverhampton","707228","Senwod Contracting Limited","SI-15596","309.80","TPP - Waste Disposal","130223893","01/08/2018","Leisure Services","Aldersley Leisure Village","R5003"
"Wolverhampton City Council","http://opendatacommunities.org/id/metropolitan-district-council/wolverhampton","707257","SG World Limited","30759040","539.50","Equipment - Purchase","130225731","15/08/2018","Early Intervention","EIP Locality 1 - Eastfields","R4000"
"Wolverhampton City Council","http://opendatacommunities.org/id/metropolitan-district-council/wolverhampton","707260","SGS United Kingdom Limited","WWB1123343","399.60","Subscriptions","130224786","08/08/2018","Fleet Services","Fleet Management","R4701"
"Wolverhampton City Council","http://opendatacommunities.org/id/metropolitan-district-council/wolverhampton","707260","SGS United Kingdom Limited","WWB1123343","399.60","Subscriptions","130224786","08/08/2018","Bereavement Services","Cemeteries","R4701"
"Wolverhampton City Council","http://opendatacommunities.org/id/metropolitan-district-council/wolverhampton","707260","SGS United Kingdom Limited","WWB1123343","200.40","Subscriptions","130224786","08/08/2018","Environmental Maintenance","Ground Maintenance Overheads","R4701"
"Wolverhampton City Council","http://opendatacommunities.org/id/metropolitan-district-council/wolverhampton","707260","SGS United Kingdom Limited","WWB1123343","200.40","Subscriptions","130224786","08/08/2018","Environmental Maintenance","Street Cleansing Overheads","R4701"
"Wolverhampton City Council","http://opendatacommunities.org/id/metropolitan-district-council/wolverhampton","707260","SGS United Kingdom Limited","WWB1123778","800.00","Services - Professional Fees","130223894","22/08/2018","Customer Services","City Direct","R4400"
"Wolverhampton City Council","http://opendatacommunities.org/id/metropolitan-district-council/wolverhampton","707288","Shine Fostering","P180350 19081820180727","3,600.00","TPP - Placement Foster Care Agency","190491318","01/08/2018","Looked After Children","Out of City Placements","R5602"
"Wolverhampton City Council","http://opendatacommunities.org/id/metropolitan-district-council/wolverhampton","707288","Shine Fostering","P180350 19081820180727","3,600.00","TPP - Placement Foster Care Agency","190491318","01/08/2018","Looked After Children","Out of City Placements","R5602"
"Wolverhampton City Council","http://opendatacommunities.org/id/metropolitan-district-council/wolverhampton","707296","Shropshire Council","SEN001027","45,700.00","TPP - Payments to Local Authorities","130223203","10/08/2018","Strategic Commissioning","Commissioning Disabilities","R5100"
"Wolverhampton City Council","http://opendatacommunities.org/id/metropolitan-district-council/wolverhampton","707296","Shropshire Council","EAS000468","90.00","Training Expenses","130223442","08/08/2018","Looked After Children","Adoption and Residence Team & Allowances","R1650"
"Wolverhampton City Council","http://opendatacommunities.org/id/metropolitan-district-council/wolverhampton","707296","Shropshire Council","EAS000441","350.00","Training Expenses","130223335","08/08/2018","Looked After Children","Adoption and Residence Team & Allowances","R1650"
"Wolverhampton City Council","http://opendatacommunities.org/id/metropolitan-district-council/wolverhampton","707307","Siemens Financial Services Limited","244/18/0215130","940.83","Equipment - Hire","130223762","01/08/2018","Adult Education","The Maltings","R4001"
"Wolverhampton City Council","http://opendatacommunities.org/id/metropolitan-district-council/wolverhampton","707313","Signature","SI00200755","100.00","Exam Expenses (Non-Employee)","130224794","15/08/2018","Adult Education","Language Studies Delivery Area","R4630"
"Wolverhampton City Council","http://opendatacommunities.org/id/metropolitan-district-council/wolverhampton","707313","Signature","SI00201657","40.00","Exam Expenses (Non-Employee)","130224810","15/08/2018","Adult Education","Language Studies Delivery Area","R4630"
"Wolverhampton City Council","http://opendatacommunities.org/id/metropolitan-district-council/wolverhampton","707313","Signature","SI00201195","50.00","Exam Expenses (Non-Employee)","130224804","10/08/2018","Adult Education","Discretionary Fund","R4630"
"Wolverhampton City Council","http://opendatacommunities.org/id/metropolitan-district-council/wolverhampton","707313","Signature","SI00201029","245.00","Exam Expenses (Non-Employee)","130224799","15/08/2018","Adult Education","Language Studies Delivery Area","R4630"
"Wolverhampton City Council","http://opendatacommunities.org/id/metropolitan-district-council/wolverhampton","707313","Signature","SI00200527","100.00","Exam Expenses (Non-Employee)","130224792","15/08/2018","Adult Education","Language Studies Delivery Area","R4630"
"Wolverhampton City Council","http://opendatacommunities.org/id/metropolitan-district-council/wolverhampton","707313","Signature","SI00200754","160.00","Exam Expenses (Non-Employee)","130224793","15/08/2018","Adult Education","Language Studies Delivery Area","R4630"
"Wolverhampton City Council","http://opendatacommunities.org/id/metropolitan-district-council/wolverhampton","707313","Signature","SI00201608","100.00","Exam Expenses (Non-Employee)","130224809","15/08/2018","Adult Education","Language Studies Delivery Area","R4630"
"Wolverhampton City Council","http://opendatacommunities.org/id/metropolitan-district-council/wolverhampton","707313","Signature","SI00200878","192.00","Exam Expenses (Non-Employee)","130224796","15/08/2018","Adult Education","Language Studies Delivery Area","R4630"
"Wolverhampton City Council","http://opendatacommunities.org/id/metropolitan-district-council/wolverhampton","707313","Signature","SI00200526","240.00","Exam Expenses (Non-Employee)","130224791","15/08/2018","Adult Education","Language Studies Delivery Area","R4630"
"Wolverhampton City Council","http://opendatacommunities.org/id/metropolitan-district-council/wolverhampton","707320","Signpost Solutions Limited T/A Signfix","247496","1,250.00","Materials","130224156","08/08/2018","Street Lighting","Signs Illuminated","R4007"
"Wolverhampton City Council","http://opendatacommunities.org/id/metropolitan-district-council/wolverhampton","707320","Signpost Solutions Limited T/A Signfix","247496","5,625.00","Materials","130224156","08/08/2018","Street Lighting","Signs Illuminated","R4007"
"Wolverhampton City Council","http://opendatacommunities.org/id/metropolitan-district-council/wolverhampton","707320","Signpost Solutions Limited T/A Signfix","247496","1,875.00","Materials","130224156","08/08/2018","Street Lighting","Signs Illuminated","R4007"
"Wolverhampton City Council","http://opendatacommunities.org/id/metropolitan-district-council/wolverhampton","707320","Signpost Solutions Limited T/A Signfix","247496","1,120.00","Materials","130224156","08/08/2018","Street Lighting","Signs Illuminated","R4007"
"Wolverhampton City Council","http://opendatacommunities.org/id/metropolitan-district-council/wolverhampton","707349","SUEZ Recycling & Recovery (Sita UK)","80109459","13,795.60","TPP - Waste Disposal","130223443","15/08/2018","Environmental Maintenance","Ground Maintenance East","R5003"
"Wolverhampton City Council","http://opendatacommunities.org/id/metropolitan-district-council/wolverhampton","707349","SUEZ Recycling & Recovery (Sita UK)","80109459","616.20","TPP - Waste Disposal","130223443","15/08/2018","Highways Maintenance","Gully Sweeping","R5003"
"Wolverhampton City Council","http://opendatacommunities.org/id/metropolitan-district-council/wolverhampton","707353","Sitewatch Fire Surveillance Limited","49824","59.50","Fixtures and Fittings - R&M","130226852","31/08/2018","Facilities Management","Victoria Square, Block 11","R2502"
"Wolverhampton City Council","http://opendatacommunities.org/id/metropolitan-district-council/wolverhampton","707353","Sitewatch Fire Surveillance Limited","49066","59.50","Fixtures and Fittings - R&M","130223895","01/08/2018","Facilities Management","Victoria Square, Block 11","R2502"
"Wolverhampton City Council","http://opendatacommunities.org/id/metropolitan-district-council/wolverhampton","707356","SJ Cleaning (Midlands) Limited","WCC1819/03","2,245.75","Window Cleaning","130224157","01/08/2018","Facilities Management","Civic Centre","R2701"
"Wolverhampton City Council","http://opendatacommunities.org/id/metropolitan-district-council/wolverhampton","707374","Smart Metering Systems","0000040078","1,696.93","Construction and Conversion","130225607","15/08/2018","-","Sports Investment Strategy","C1100"
"Wolverhampton City Council","http://opendatacommunities.org/id/metropolitan-district-council/wolverhampton","707388","Smith Bros(Caer Conan)Wholesale Limited","570459","440.55","Materials","130226161","22/08/2018","Street Lighting","Street Lighting Maintenance","R4007"
"Wolverhampton City Council","http://opendatacommunities.org/id/metropolitan-district-council/wolverhampton","707388","Smith Bros(Caer Conan)Wholesale Limited","571443","120.10","Materials","130226563","24/08/2018","Street Lighting","Street Lighting Maintenance","R4007"
"Wolverhampton City Council","http://opendatacommunities.org/id/metropolitan-district-council/wolverhampton","707388","Smith Bros(Caer Conan)Wholesale Limited","570458","311.04","Materials","130226160","22/08/2018","Street Lighting","Street Lighting Maintenance","R4007"
"Wolverhampton City Council","http://opendatacommunities.org/id/metropolitan-district-council/wolverhampton","707388","Smith Bros(Caer Conan)Wholesale Limited","569558","5,503.91","Materials","130225191","22/08/2018","Street Lighting","Street Lighting Maintenance","R4007"
"Wolverhampton City Council","http://opendatacommunities.org/id/metropolitan-district-council/wolverhampton","707388","Smith Bros(Caer Conan)Wholesale Limited","571442","311.04","Materials","130226562","24/08/2018","Street Lighting","Street Lighting Maintenance","R4007"
"Wolverhampton City Council","http://opendatacommunities.org/id/metropolitan-district-council/wolverhampton","707388","Smith Bros(Caer Conan)Wholesale Limited","572562","272.16","Materials","130226453","29/08/2018","Street Lighting","Street Lighting Maintenance","R4007"
"Wolverhampton City Council","http://opendatacommunities.org/id/metropolitan-district-council/wolverhampton","707388","Smith Bros(Caer Conan)Wholesale Limited","572562","200.80","Materials","130226453","29/08/2018","Street Lighting","Street Lighting Maintenance","R4007"
"Wolverhampton City Council","http://opendatacommunities.org/id/metropolitan-district-council/wolverhampton","707388","Smith Bros(Caer Conan)Wholesale Limited","570460","169.40","Materials","130226162","22/08/2018","Street Lighting","Street Lighting Maintenance","R4007"
"Wolverhampton City Council","http://opendatacommunities.org/id/metropolitan-district-council/wolverhampton","707419","Solihull Metropolitan B C","106720","27,000.00","TPP - Payments to Local Authorities","130224158","01/08/2018","Looked After Children","Adoption and Residence Team & Allowances","R5100"
"Wolverhampton City Council","http://opendatacommunities.org/id/metropolitan-district-council/wolverhampton","707441","Southern Electric PLC","241587943/0035","171.61","Electricity","190499679","29/08/2018","Estates and Valuations","Industrial Premises ; Loxdale Park","R2100"
"Wolverhampton City Council","http://opendatacommunities.org/id/metropolitan-district-council/wolverhampton","707441","Southern Electric PLC","241587943/0034","190.90","Electricity","190499678","29/08/2018","Estates and Valuations","Industrial Premises ; Loxdale Park","R2100"
"Wolverhampton City Council","http://opendatacommunities.org/id/metropolitan-district-council/wolverhampton","707441","Southern Electric PLC","3416359410004","250.00","Electricity","190493751","08/08/2018","Corporate Asset Management","Central Utilities to Recharge","R2100"
"Wolverhampton City Council","http://opendatacommunities.org/id/metropolitan-district-council/wolverhampton","707441","Southern Electric PLC","241587943/0028","274.74","Electricity","190499676","29/08/2018","Estates and Valuations","Industrial Premises ; Loxdale Park","R2100"
"Wolverhampton City Council","http://opendatacommunities.org/id/metropolitan-district-council/wolverhampton","707441","Southern Electric PLC","241587943/0029","283.43","Electricity","190499677","29/08/2018","Estates and Valuations","Industrial Premises ; Loxdale Park","R2100"
"Wolverhampton City Council","http://opendatacommunities.org/id/metropolitan-district-council/wolverhampton","707462","Specialised Orthotic Services Limited","0000719499","50.00","Equipment - Purchase","130223763","22/08/2018","Independent Living Service","Independent Living Service","R4000"
"Wolverhampton City Council","http://opendatacommunities.org/id/metropolitan-district-council/wolverhampton","707462","Specialised Orthotic Services Limited","0000719499","35.00","Equipment - Purchase","130223763","22/08/2018","Independent Living Service","Independent Living Service","R4000"
"Wolverhampton City Council","http://opendatacommunities.org/id/metropolitan-district-council/wolverhampton","707463","Specialised Tools & Equipment Limited","089892","23.75","Equipment - Purchase","130225732","22/08/2018","Environmental Maintenance","Ground Maintenance East","R4000"
"Wolverhampton City Council","http://opendatacommunities.org/id/metropolitan-district-council/wolverhampton","707463","Specialised Tools & Equipment Limited","089892","145.50","Equipment - Purchase","130225732","22/08/2018","Environmental Maintenance","Ground Maintenance East","R4000"
"Wolverhampton City Council","http://opendatacommunities.org/id/metropolitan-district-council/wolverhampton","707463","Specialised Tools & Equipment Limited","089892","65.45","Equipment - Purchase","130225732","22/08/2018","Environmental Maintenance","Ground Maintenance East","R4000"
"Wolverhampton City Council","http://opendatacommunities.org/id/metropolitan-district-council/wolverhampton","707463","Specialised Tools & Equipment Limited","089892","15.00","Comms - Postage","130225732","22/08/2018","Environmental Maintenance","Ground Maintenance East","R4503"
"Wolverhampton City Council","http://opendatacommunities.org/id/metropolitan-district-council/wolverhampton","707463","Specialised Tools & Equipment Limited","089993","166.50","Equipment - Purchase","130226311","29/08/2018","Bereavement Services","Bereavement services - Grounds maintenance","R4000"
"Wolverhampton City Council","http://opendatacommunities.org/id/metropolitan-district-council/wolverhampton","707463","Specialised Tools & Equipment Limited","089901","94.95","Equipment - Purchase","130225873","22/08/2018","Environmental Maintenance","Ground Maintenance East","R4000"
"Wolverhampton City Council","http://opendatacommunities.org/id/metropolitan-district-council/wolverhampton","707474","Speedy Asset Services Limited","7111824883","108.61","Equipment - Hire","130225334","17/08/2018","Highways Maintenance","Planned Highways Maintenance","R4001"
"Wolverhampton City Council","http://opendatacommunities.org/id/metropolitan-district-council/wolverhampton","707474","Speedy Asset Services Limited","7111825814","84.00","Equipment - Hire","130225339","17/08/2018","Highways Maintenance","Planned Highways Maintenance","R4001"
"Wolverhampton City Council","http://opendatacommunities.org/id/metropolitan-district-council/wolverhampton","707474","Speedy Asset Services Limited","7111823488","27.22","Equipment - Hire","130225326","17/08/2018","Highways Maintenance","Planned Highways Maintenance","R4001"
"Wolverhampton City Council","http://opendatacommunities.org/id/metropolitan-district-council/wolverhampton","707474","Speedy Asset Services Limited","7111824162","280.75","Equipment - Hire","130225330","17/08/2018","Highways Maintenance","Planned Highways Maintenance","R4001"
"Wolverhampton City Council","http://opendatacommunities.org/id/metropolitan-district-council/wolverhampton","707474","Speedy Asset Services Limited","7109898645","46.55","Equipment - Purchase","130224541","17/08/2018","Street Lighting","Street Lighting Maintenance","R4000"
"Wolverhampton City Council","http://opendatacommunities.org/id/metropolitan-district-council/wolverhampton","707474","Speedy Asset Services Limited","7111826513","98.78","Equipment - Hire","130225343","17/08/2018","Highways Maintenance","Planned Highways Maintenance","R4001"
"Wolverhampton City Council","http://opendatacommunities.org/id/metropolitan-district-council/wolverhampton","707474","Speedy Asset Services Limited","7110952875","-362.04","Equipment - Purchase","130224542","17/08/2018","Street Lighting","Street Lighting Maintenance","R4000"
"Wolverhampton City Council","http://opendatacommunities.org/id/metropolitan-district-council/wolverhampton","707474","Speedy Asset Services Limited","7111823638","52.00","Equipment - Hire","130225327","17/08/2018","Highways Maintenance","Planned Highways Maintenance","R4001"
"Wolverhampton City Council","http://opendatacommunities.org/id/metropolitan-district-council/wolverhampton","707474","Speedy Asset Services Limited","7111826068","84.00","Equipment - Hire","130225340","17/08/2018","Highways Maintenance","Planned Highways Maintenance","R4001"
"Wolverhampton City Council","http://opendatacommunities.org/id/metropolitan-district-council/wolverhampton","707474","Speedy Asset Services Limited","7111826613","102.40","Equipment - Hire","130225344","17/08/2018","Highways Maintenance","Planned Highways Maintenance","R4001"
"Wolverhampton City Council","http://opendatacommunities.org/id/metropolitan-district-council/wolverhampton","707474","Speedy Asset Services Limited","7111824393","50.40","Equipment - Hire","130225331","17/08/2018","Highways Maintenance","Planned Highways Maintenance","R4001"
"Wolverhampton City Council","http://opendatacommunities.org/id/metropolitan-district-council/wolverhampton","707474","Speedy Asset Services Limited","7111825073","108.61","Equipment - Hire","130225335","17/08/2018","Highways Maintenance","Planned Highways Maintenance","R4001"
"Wolverhampton City Council","http://opendatacommunities.org/id/metropolitan-district-council/wolverhampton","707474","Speedy Asset Services Limited","7111823306","52.04","Equipment - Hire","130225325","17/08/2018","Highways Maintenance","Planned Highways Maintenance","R4001"
"Wolverhampton City Council","http://opendatacommunities.org/id/metropolitan-district-council/wolverhampton","707474","Speedy Asset Services Limited","7111823845","52.00","Equipment - Hire","130225329","17/08/2018","Highways Maintenance","Planned Highways Maintenance","R4001"
"Wolverhampton City Council","http://opendatacommunities.org/id/metropolitan-district-council/wolverhampton","707474","Speedy Asset Services Limited","7111824721","115.50","Equipment - Hire","130225333","17/08/2018","Highways Maintenance","Planned Highways Maintenance","R4001"
"Wolverhampton City Council","http://opendatacommunities.org/id/metropolitan-district-council/wolverhampton","707474","Speedy Asset Services Limited","7111825665","245.70","Equipment - Hire","130225338","17/08/2018","Highways Maintenance","Planned Highways Maintenance","R4001"
"Wolverhampton City Council","http://opendatacommunities.org/id/metropolitan-district-council/wolverhampton","707474","Speedy Asset Services Limited","7111826343","50.40","Equipment - Hire","130225342","17/08/2018","Highways Maintenance","Planned Highways Maintenance","R4001"
"Wolverhampton City Council","http://opendatacommunities.org/id/metropolitan-district-council/wolverhampton","707474","Speedy Asset Services Limited","7111147358","103.44","Equipment - Hire","130224984","17/08/2018","Highways Maintenance","Planned Highways Maintenance","R4001"
"Wolverhampton City Council","http://opendatacommunities.org/id/metropolitan-district-council/wolverhampton","707474","Speedy Asset Services Limited","7111825336","70.56","Equipment - Hire","130225336","31/08/2018","Highways Maintenance","Planned Highways Maintenance","R4001"
"Wolverhampton City Council","http://opendatacommunities.org/id/metropolitan-district-council/wolverhampton","707474","Speedy Asset Services Limited","7109689683","108.61","Equipment - Hire","130226969","31/08/2018","Highways Maintenance","Planned Highways Maintenance","R4001"
"Wolverhampton City Council","http://opendatacommunities.org/id/metropolitan-district-council/wolverhampton","707474","Speedy Asset Services Limited","7111823836","109.20","Equipment - Hire","130225328","17/08/2018","Highways Maintenance","Planned Highways Maintenance","R4001"
"Wolverhampton City Council","http://opendatacommunities.org/id/metropolitan-district-council/wolverhampton","707474","Speedy Asset Services Limited","7111824583","50.40","Equipment - Hire","130225332","17/08/2018","Highways Maintenance","Planned Highways Maintenance","R4001"
"Wolverhampton City Council","http://opendatacommunities.org/id/metropolitan-district-council/wolverhampton","707474","Speedy Asset Services Limited","7111826079","52.04","Equipment - Hire","130225341","17/08/2018","Highways Maintenance","Planned Highways Maintenance","R4001"
"Wolverhampton City Council","http://opendatacommunities.org/id/metropolitan-district-council/wolverhampton","707474","Speedy Asset Services Limited","7110954506","-672.35","Equipment - Purchase","130224543","17/08/2018","Street Lighting","Street Lighting Maintenance","R4000"
"Wolverhampton City Council","http://opendatacommunities.org/id/metropolitan-district-council/wolverhampton","707474","Speedy Asset Services Limited","7110996169","362.04","Equipment - Hire","130224983","17/08/2018","Highways Maintenance","Planned Highways Maintenance","R4001"
"Wolverhampton City Council","http://opendatacommunities.org/id/metropolitan-district-council/wolverhampton","707474","Speedy Asset Services Limited","7111825345","52.04","Equipment - Hire","130225337","17/08/2018","Highways Maintenance","Planned Highways Maintenance","R4001"
"Wolverhampton City Council","http://opendatacommunities.org/id/metropolitan-district-council/wolverhampton","707474","Speedy Asset Services Limited","7111823139","52.04","Equipment - Hire","130225324","17/08/2018","Highways Maintenance","Planned Highways Maintenance","R4001"
"Wolverhampton City Council","http://opendatacommunities.org/id/metropolitan-district-council/wolverhampton","707492","Sportsafe UK Limited","529468","1,959.00","R&M - Departmental planned (internal)","130224985","22/08/2018","Leisure Services","Aldersley Leisure Village","R2000"
"Wolverhampton City Council","http://opendatacommunities.org/id/metropolitan-district-council/wolverhampton","707499","Spurgeons","3556","8,083.33","TPP - Social Care Support Services","130224605","29/08/2018","Child Protection","Head of Service - CINCP","R5501"
"Wolverhampton City Council","http://opendatacommunities.org/id/metropolitan-district-council/wolverhampton","707519","St Ives Chambers","INVDP22","2,700.00","Services - Professional Fees","130224606","08/08/2018","Legal Services","Centralised External Legal Costs","R4400"
"Wolverhampton City Council","http://opendatacommunities.org/id/metropolitan-district-council/wolverhampton","707519","St Ives Chambers","INVJJ1","437.50","Services - Professional Fees","130224986","15/08/2018","Public Protection","Trading Standards","R4400"
"Wolverhampton City Council","http://opendatacommunities.org/id/metropolitan-district-council/wolverhampton","707519","St Ives Chambers","INVTB23","700.00","Services - Professional Fees","130225733","17/08/2018","Legal Services","Centralised External Legal Costs","R4400"
"Wolverhampton City Council","http://opendatacommunities.org/id/metropolitan-district-council/wolverhampton","707519","St Ives Chambers","INVKS3","437.50","Services - Professional Fees","130225192","08/08/2018","Housing","Private Sector Housing","R4400"
"Wolverhampton City Council","http://opendatacommunities.org/id/metropolitan-district-council/wolverhampton","707521","St Johns Ambulance","SP18010793","161.00","Services - Professional Fees","130223594","08/08/2018","Public Service Reform","Mayoral Expenses","R4400"
"Wolverhampton City Council","http://opendatacommunities.org/id/metropolitan-district-council/wolverhampton","707564","Staffordshire County Council","1000008284","5,865.30","Client Transport - SEN","130224812","08/08/2018","Special Educational Needs","Special - Transport","R3043"
"Wolverhampton City Council","http://opendatacommunities.org/id/metropolitan-district-council/wolverhampton","707564","Staffordshire County Council","P18063920180730","5,424.30","TPP - Payments to voluntary groups","190491739","01/08/2018","Child Protection","Childrens with Disabilities Team","R5200"
"Wolverhampton City Council","http://opendatacommunities.org/id/metropolitan-district-council/wolverhampton","707564","Staffordshire County Council","1000014807","3,718.00","TPP - Payments to Local Authorities","130223446","08/08/2018","Special Educational Needs","SEN Education OOC","R5100"
"Wolverhampton City Council","http://opendatacommunities.org/id/metropolitan-district-council/wolverhampton","707572","Stage Audio Services Limited","4076","550.00","Services - Professional Fees","130226165","22/08/2018","Visitor Economy","The Little Civic","R4400"
"Wolverhampton City Council","http://opendatacommunities.org/id/metropolitan-district-council/wolverhampton","707575","Stage Wolves Limited","5689","11,736.00","Services - Professional Fees","130224987","08/08/2018","Visitor Economy","Civic Halls Non-Direct Event Management Account","R4400"
"Wolverhampton City Council","http://opendatacommunities.org/id/metropolitan-district-council/wolverhampton","707575","Stage Wolves Limited","5681","2,996.00","Services - Professional Fees","130226853","31/08/2018","Visitor Economy","Civic Halls Non-Direct Event Management Account","R4400"
"Wolverhampton City Council","http://opendatacommunities.org/id/metropolitan-district-council/wolverhampton","707575","Stage Wolves Limited","5676","1,222.00","Services - Professional Fees","130223596","01/08/2018","Visitor Economy","Civic Halls - CHIP","R4400"
"Wolverhampton City Council","http://opendatacommunities.org/id/metropolitan-district-council/wolverhampton","707575","Stage Wolves Limited","5618","784.00","Services - Professional Fees","130223595","17/08/2018","Visitor Economy","Civic Halls - CHIP","R4400"
"Wolverhampton City Council","http://opendatacommunities.org/id/metropolitan-district-council/wolverhampton","707575","Stage Wolves Limited","5677","1,250.00","Services - Professional Fees","130223597","01/08/2018","Visitor Economy","The Little Civic","R4400"
"Wolverhampton City Council","http://opendatacommunities.org/id/metropolitan-district-council/wolverhampton","707575","Stage Wolves Limited","5677","3,175.00","Services - Professional Fees","130223597","01/08/2018","Visitor Economy","Civic & Wulfrun In-House Promotions","R4400"
"Wolverhampton City Council","http://opendatacommunities.org/id/metropolitan-district-council/wolverhampton","707575","Stage Wolves Limited","5677","1,225.00","Services - Professional Fees","130223597","01/08/2018","Visitor Economy","Civic & Wulfrun Outhouse & Other Comercial Events","R4400"
"Wolverhampton City Council","http://opendatacommunities.org/id/metropolitan-district-council/wolverhampton","707580","Stannah Lifts Limited","18/0114/SAG","3,291.00","Grants paid out to other organisations","190491891","01/08/2018","-","Disabled Facilities Grants","C5011"
"Wolverhampton City Council","http://opendatacommunities.org/id/metropolitan-district-council/wolverhampton","707580","Stannah Lifts Limited","17/0755/SAG","1,143.00","Grants paid out to other organisations","190498314","22/08/2018","-","Disabled Facilities Grants","C5011"
"Wolverhampton City Council","http://opendatacommunities.org/id/metropolitan-district-council/wolverhampton","707580","Stannah Lifts Limited","18/0018/SAG","5,553.00","Grants paid out to other organisations","190498311","22/08/2018","-","Disabled Facilities Grants","C5011"
"Wolverhampton City Council","http://opendatacommunities.org/id/metropolitan-district-council/wolverhampton","707580","Stannah Lifts Limited","18/0364/SLM","230.30","Grants paid out to other organisations","190500893","31/08/2018","-","Disabled Facilities Grants","C5011"
"Wolverhampton City Council","http://opendatacommunities.org/id/metropolitan-district-council/wolverhampton","707580","Stannah Lifts Limited","18/0128/SAG","3,493.00","Grants paid out to other organisations","190500889","31/08/2018","-","Disabled Facilities Grants","C5011"
"Wolverhampton City Council","http://opendatacommunities.org/id/metropolitan-district-council/wolverhampton","707580","Stannah Lifts Limited","18/0334/SLM","47.41","Grants paid out to other organisations","190500891","31/08/2018","-","Disabled Facilities Grants","C5011"
"Wolverhampton City Council","http://opendatacommunities.org/id/metropolitan-district-council/wolverhampton","707580","Stannah Lifts Limited","18/0313/SLM","934.75","Grants paid out to other organisations","190494707","10/08/2018","-","Disabled Facilities Grants","C5011"
"Wolverhampton City Council","http://opendatacommunities.org/id/metropolitan-district-council/wolverhampton","707580","Stannah Lifts Limited","18/0067/SAG","790.00","Grants paid out to other organisations","190498315","22/08/2018","-","Disabled Facilities Grants","C5011"
"Wolverhampton City Council","http://opendatacommunities.org/id/metropolitan-district-council/wolverhampton","707580","Stannah Lifts Limited","17/0800/SAG","3,116.00","Grants paid out to other organisations","190498313","22/08/2018","-","Disabled Facilities Grants","C5011"
"Wolverhampton City Council","http://opendatacommunities.org/id/metropolitan-district-council/wolverhampton","707580","Stannah Lifts Limited","18/0127/SAG","5,182.00","Grants paid out to other organisations","190491288","01/08/2018","-","Disabled Facilities Grants","C5011"
"Wolverhampton City Council","http://opendatacommunities.org/id/metropolitan-district-council/wolverhampton","707580","Stannah Lifts Limited","18/0104/SAG","2,984.00","Grants paid out to other organisations","190500896","31/08/2018","-","Disabled Facilities Grants","C5011"
"Wolverhampton City Council","http://opendatacommunities.org/id/metropolitan-district-council/wolverhampton","707580","Stannah Lifts Limited","18/0125/SAG","5,933.00","Grants paid out to other organisations","190500894","31/08/2018","-","Disabled Facilities Grants","C5011"
"Wolverhampton City Council","http://opendatacommunities.org/id/metropolitan-district-council/wolverhampton","707580","Stannah Lifts Limited","18/0332/SLM","420.91","Grants paid out to other organisations","190500897","31/08/2018","-","Disabled Facilities Grants","C5011"
"Wolverhampton City Council","http://opendatacommunities.org/id/metropolitan-district-council/wolverhampton","707580","Stannah Lifts Limited","17/0787/SAG","5,363.00","Grants paid out to other organisations","190494705","10/08/2018","-","Disabled Facilities Grants","C5011"
"Wolverhampton City Council","http://opendatacommunities.org/id/metropolitan-district-council/wolverhampton","707580","Stannah Lifts Limited","18/0065/SAG","5,481.00","Grants paid out to other organisations","190493118","03/08/2018","-","Disabled Facilities Grants","C5011"
"Wolverhampton City Council","http://opendatacommunities.org/id/metropolitan-district-council/wolverhampton","707580","Stannah Lifts Limited","17/0696/SAG","5,670.00","Grants paid out to other organisations","190500009","29/08/2018","-","Disabled Facilities Grants","C5011"
"Wolverhampton City Council","http://opendatacommunities.org/id/metropolitan-district-council/wolverhampton","707580","Stannah Lifts Limited","18/0275/SLM","489.13","Grants paid out to other organisations","190491292","01/08/2018","-","Disabled Facilities Grants","C5011"
"Wolverhampton City Council","http://opendatacommunities.org/id/metropolitan-district-council/wolverhampton","707580","Stannah Lifts Limited","18/0001/SAG","2,880.00","Grants paid out to other organisations","190498309","22/08/2018","-","Disabled Facilities Grants","C5011"
"Wolverhampton City Council","http://opendatacommunities.org/id/metropolitan-district-council/wolverhampton","707580","Stannah Lifts Limited","17/0742/SAG","5,408.00","Grants paid out to other organisations","190498310","22/08/2018","-","Disabled Facilities Grants","C5011"
"Wolverhampton City Council","http://opendatacommunities.org/id/metropolitan-district-council/wolverhampton","707580","Stannah Lifts Limited","18/0333/SLM","111.43","Grants paid out to other organisations","190500899","31/08/2018","-","Disabled Facilities Grants","C5011"
"Wolverhampton City Council","http://opendatacommunities.org/id/metropolitan-district-council/wolverhampton","707580","Stannah Lifts Limited","17/0792/SAG","2,678.00","Grants paid out to other organisations","190500895","31/08/2018","-","Disabled Facilities Grants","C5011"
